Workbook

Sheet Data
A1: ObservationURI | B1: ObservationName | C1: WellType | D1: HeaderURI | E1: WellName | F1: OtherID | G1: County | H1: State | I1: LatDegree | J1: LongDegree | K1: LocationUncertaintyStatement | L1: DepthTopInterval_ft | M1: DepthBottomInterval_ft | N1: RockType | O1: Lithology | P1: OtherLithologyName | Q1: GeologicUnitName | R1: OtherFormationName | S1: PercentTargetRock | T1: AverageNetTargetRockThickness_m | U1: AverageNetTargetRockThicknessUncertainty | V1: AverageNetTargetRockThicknessMethodology | W1: VerticalConductivity_ft_day | X1: HorizontalConductivity_ft_day | Y1: SpecificStorage | Z1: UnitsStorage | AA1: Permeability | AB1: UnitsPermeability | AC1: PermeabilityMax | AD1: PermeabilityMin | AE1: PermeabilityAverage | AF1: PermeabilityAverageUncertainty | AG1: PermeabilityAverageMethod | AH1: SpecificYield_percent | AI1: Transmissivity | AJ1: Transmissivity_units | AK1: EffectivePorosity | AL1: Porosity | AM1: PorosityMax_pct | AN1: PorosityMin_pct | AO1: PorosityAverage_pct | AP1: PorosityAverageUncertainty | AQ1: PorosityAverageMethod | AR1: ObservationMethod | AS1: RelatedResource | AT1: Source | AU1: MetadataURI | AV1: Shape | AW1: CementationMineralogy | AX1: Trap | AY1: Drive | AZ1: WaterDensity_mgL | BA1: CommodityOfInterest | BB1: Stimulation | BC1: AveragePerforatedThickness_m | BD1: WellCount | BE1: FaultCount | BF1: Faulted | BG1: FaultType | BH1: FaultHydraulicCharacter | BI1: FirstProductionDate | BJ1: LastProductionDate | BK1: YearsInProduction | BL1: MonthlyProduction_bbl | BM1: ProductionReportDate | BN1: AverageMonthlyWaterProduction_bbl | BO1: MinimumMonthlyWaterProduction_bbl | BP1: MaximumMonthlyWaterProduction_bbl | BQ1: WaterInjection_bbl | BR1: WaterSaturation_pct | BS1: WaterSaturationMethod | BT1: WaterSaturationUncertainty | BU1: WaterTDS_mgl | BV1: AverageInitialPressure_psi | BW1: AverageInitialPressure_Uncertainty | BX1: AverageInitialPressure_Methodology | BY1: AverageBHT_°F | BZ1: BHT units | CA1: AverageBHT_Uncertainty | CB1: AverageBHT_Methodology | CC1: Maria reviewed | CD1: if statement (not visible) | DH1: Waskom Field | DK1: Willow Springs Field | DL1: Willow Springs Field | DN1: Woodlawn Field
A2: 26 | F2: Carthage Field | G2: Panola | H2: TX | I2: 32.10837085 | J2: -94.32012383 | K2: Average of Field from DrillingInfo | L2: 2058 | N2: Sandstone | Q2: Blossom Sandstone | T2: =17*0.3048 -> 5.1816 | U2: 1 | V2: Net pay from Kosters et al., 1989 (Table 40) | AT2: Kosters et al., 1989 (Table 40) | AX2: struct-structural nose strat-facies change | BA2: gas and oil | BI2: 1963 | CC2: yes
A3: 8 | F3: Willow Springs Field | G3: Gregg | H3: TX | I3: 32.52132664 | J3: -94.78636421 | K3: Average of Field from DrillingInfo | L3: 8873 | N3: Sandstone | Q3: Bodenhem-Trans Sandstone | T3: =6*0.3048 -> 1.8288 | U3: 1 | V3: Net pay from Kosters et al., 1989 (Table 38) | AT3: Kosters et al., 1989 (Table 38) | AX3: struct-facies change strat-faulted anticline | BA3: gas and oil | BI3: 1966 | CC3: yes
A4: 48 | D4: 4220330565 | F4: Wildcatter | G4: Harrison | H4: TX | I4: 32.5787458 | J4: -94.2603606 | K4: DrillingInfo | L4: 9653 | M4: 9654 | N4: Sandstone | Q4: Cotton Valley Sandstone | R4: Roseberry Interval | T4: =(M4-L4)*0.3048 -> 0.3048 | U4: 1 | V4: Calculated from top and bottom depths in Bagley, 2009 | AA4: 0.022 | AB4: md | AC4: 0.022 | AD4: 0.022 | AE4: 0.022 | AF4: 1 | AG4: Values from Bagley, 2009 | AL4: 2.3 | AM4: 2.3 | AN4: 2.3 | AO4: 2.3 | AP4: 1 | AQ4: Values from Bagley, 2009| Uncertainty 1=empirical related to formation 5=assigned from calc. | AR4: core plug @ 9653 ft | AS4: http://webapps.rrc.texas.gov/DP/publicQuerySearchAction.do?countyCode=203&apiSeqNo=30570 | AT4: Bagley, 2009 | AW4: Quartz | CC4: yes
A5: 47 | D5: 4220330565 | F5: Wildcatter | G5: Harrison | H5: TX | I5: 32.5787458 | J5: -94.2603606 | K5: DrillingInfo | L5: 9619 | M5: 9620 | N5: Sandstone | Q5: Cotton Valley Sandstone | R5: Roseberry Interval | T5: 0.3048 | U5: 1 | V5: Calculated from top and bottom depths in Bagley, 2009 | AA5: 0.025 | AB5: md | AC5: 0.025 | AD5: 0.025 | AE5: 0.025 | AF5: 1 | AG5: Values from Bagley, 2009 | AL5: 7 | AM5: 7 | AN5: 7 | AO5: 7 | AP5: 1 | AQ5: Values from Bagley, 2009| Uncertainty 1=empirical related to formation 5=assigned from calc. | AR5: core plug @ 9619 ft | AS5: http://webapps.rrc.texas.gov/DP/publicQuerySearchAction.do?countyCode=203&apiSeqNo=30569 | AT5: Bagley, 2009 | AW5: Quartz | CC5: yes
A6: 47 | D6: 4220330565 | F6: Wildcatter | G6: Harrison | H6: TX | I6: 32.5787458 | J6: -94.2603606 | K6: DrillingInfo | L6: 9565 | M6: 9655 | N6: Sandstone | Q6: Cotton Valley Sandstone | R6: Roseberry Interval | T6: 27.432 | U6: 1 | V6: Calculated from top and bottom depths in Bagley, 2009 | AB6: md | AC6: 0.3 | AD6: 0.01 | AE6: =(AC6+AD6)/2 -> 0.155 | AF6: 5 | AG6: Values from Bagley, 2009 | AM6: 8 | AN6: 1 | AO6: =(AM6+AN6)/2 -> 4.5 | AP6: 5 | AQ6: Values from Bagley, 2009| Uncertainty 1=empirical related to formation 5=assigned from calc. | AR6: core plug @ 9619 ft | AS6: http://webapps.rrc.texas.gov/DP/publicQuerySearchAction.do?countyCode=203&apiSeqNo=30569 | AT6: Bagley, 2009 | AW6: Quartz | CC6: yes
A7: 45 | D7: 4220330565 | F7: Wildcatter | G7: Harrison | H7: TX | I7: 32.5787458 | J7: -94.2603606 | K7: DrillingInfo | L7: 9448 | M7: 9449 | N7: Sandstone | Q7: Cotton Valley Sandstone | R7: Davis I Interval | T7: 0.3048 | U7: 1 | V7: Calculated from top and bottom depths in Bagley, 2009 | AA7: 0.055 | AB7: md | AC7: 0.055 | AD7: 0.055 | AE7: 0.055 | AF7: 1 | AG7: Values from Bagley, 2009 | AL7: 5.3 | AM7: 5.3 | AN7: 5.3 | AO7: 5.3 | AP7: 1 | AQ7: Values from Bagley, 2009| Uncertainty 1=empirical related to formation 5=assigned from calc. | AR7: core plug @ 9448 ft | AS7: http://webapps.rrc.texas.gov/DP/publicQuerySearchAction.do?countyCode=203&apiSeqNo=30566 | AT7: Bagley, 2009 | AW7: Quartz | CC7: yes
A8: 45 | D8: 4220330565 | F8: Wildcatter | G8: Harrison | H8: TX | I8: 32.5787458 | J8: -94.2603606 | K8: DrillingInfo | L8: 9450 | M8: 9480 | N8: Sandstone | Q8: Cotton Valley Sandstone | R8: Davis I Interval | T8: 9.144 | U8: 1 | V8: Calculated from top and bottom depths in Bagley, 2009 | AB8: md | AC8: 0.1 | AD8: 0.01 | AE8: =(AC8+AD8)/2 -> 0.055 | AF8: 5 | AG8: Values from Bagley, 2009 | AM8: 7 | AN8: 1 | AO8: =(AM8+AN8)/2 -> 4 | AP8: 5 | AQ8: Values from Bagley, 2009| Uncertainty 1=empirical related to formation 5=assigned from calc. | AR8: core plug @ 9448 ft | AS8: http://webapps.rrc.texas.gov/DP/publicQuerySearchAction.do?countyCode=203&apiSeqNo=30566 | AT8: Bagley, 2009 | AW8: Quartz | CC8: yes
A9: 44 | D9: 4220330565 | F9: Wildcatter | G9: Harrison | H9: TX | I9: 32.5787458 | J9: -94.2603606 | K9: DrillingInfo | L9: 9431 | M9: 9432 | N9: Sandstone | Q9: Cotton Valley Sandstone | R9: Davis I Interval | T9: 0.3048 | U9: 1 | V9: Calculated from top and bottom depths in Bagley, 2009 | AA9: 4.13 | AB9: md | AC9: 4.13 | AD9: 4.13 | AE9: 4.13 | AF9: 1 | AG9: Values from Bagley, 2009 | AL9: 8.6 | AM9: 8.6 | AN9: 8.6 | AO9: 8.6 | AP9: 1 | AQ9: Values from Bagley, 2009| Uncertainty 1=empirical related to formation 5=assigned from calc. | AR9: core plug @ 9431 ft | AS9: http://webapps.rrc.texas.gov/DP/publicQuerySearchAction.do?countyCode=203&apiSeqNo=30565 | AT9: Bagley, 2009 | AW9: Quartz | CC9: yes
A10: 44 | D10: 4220330565 | F10: Wildcatter | G10: Harrison | H10: TX | I10: 32.5787458 | J10: -94.2603606 | K10: DrillingInfo | L10: 9425 | M10: 9435 | N10: Sandstone | Q10: Cotton Valley Sandstone | R10: Davis I Interval | T10: 3.048 | U10: 1 | V10: Calculated from top and bottom depths in Bagley, 2009 | AB10: md | AC10: 6 | AD10: 1 | AE10: =(AC10+AD10)/2 -> 3.5 | AF10: 5 | AG10: Values from Bagley, 2009 | AM10: 10 | AN10: 7 | AO10: =(AM10+AN10)/2 -> 8.5 | AP10: 5 | AQ10: Values from Bagley, 2009| Uncertainty 1=empirical related to formation 5=assigned from calc. | AR10: core plug @ 9431 ft | AS10: http://webapps.rrc.texas.gov/DP/publicQuerySearchAction.do?countyCode=203&apiSeqNo=30565 | AT10: Bagley, 2009 | AW10: Quartz | CC10: yes
A11: 43 | D11: 4220330565 | F11: Wildcatter | G11: Harrison | H11: TX | I11: 32.5787458 | J11: -94.2603606 | K11: DrillingInfo | L11: 9503 | M11: 9504 | N11: Sandstone | Q11: Cotton Valley Sandstone | R11: Davis II Interval | T11: 0.3048 | U11: 1 | V11: Calculated from top and bottom depths in Bagley, 2009 | AA11: 0.064 | AB11: md | AC11: 0.064 | AD11: 0.064 | AE11: 0.064 | AF11: 1 | AG11: Values from Bagley, 2009 | AL11: 4.6 | AM11: 4.6 | AN11: 4.6 | AO11: 4.6 | AP11: 1 | AQ11: Values from Bagley, 2009| Uncertainty 1=empirical related to formation 5=assigned from calc. | AR11: core plug @ 9503 ft | AS11: http://webapps.rrc.texas.gov/DP/publicQuerySearchAction.do?countyCode=203&apiSeqNo=30568 | AT11: Bagley, 2009 | AW11: Quartz | CC11: yes
A12: 43 | D12: 4220330565 | F12: Wildcatter | G12: Harrison | H12: TX | I12: 32.5787458 | J12: -94.2603606 | K12: DrillingInfo | L12: 9508 | M12: 9540 | N12: Sandstone | Q12: Cotton Valley Sandstone | R12: Davis II Interval | T12: 9.7536 | U12: 1 | V12: Calculated from top and bottom depths in Bagley, 2009 | AB12: md | AC12: 0.15 | AD12: 0.015 | AE12: =(AC12+AD12)/2 -> 0.0825 | AF12: 5 | AG12: Values from Bagley, 2009 | AM12: 12 | AN12: 4 | AO12: =(AM12+AN12)/2 -> 8 | AP12: 5 | AQ12: Values from Bagley, 2009| Uncertainty 1=empirical related to formation 5=assigned from calc. | AR12: core plug @ 9503 ft | AS12: http://webapps.rrc.texas.gov/DP/publicQuerySearchAction.do?countyCode=203&apiSeqNo=30568 | AT12: Bagley, 2009 | AW12: Quartz | CC12: yes
A13: 42 | D13: 4220330565 | F13: Wildcatter | G13: Harrison | H13: TX | I13: 32.5787458 | J13: -94.2603606 | K13: DrillingInfo | L13: 9511 | M13: 9512 | N13: Sandstone | Q13: Cotton Valley Sandstone | R13: Davis II Interval | T13: 0.3048 | U13: 1 | V13: Calculated from top and bottom depths in Bagley, 2009 | AA13: 0.115 | AB13: md | AC13: 0.115 | AD13: 0.115 | AE13: 0.115 | AF13: 1 | AG13: Values from Bagley, 2009 | AL13: 8.7 | AM13: 8.7 | AN13: 8.7 | AO13: 8.7 | AP13: 1 | AQ13: Values from Bagley, 2009| Uncertainty 1=empirical related to formation 5=assigned from calc. | AR13: core plug @ 9511 ft | AS13: http://webapps.rrc.texas.gov/DP/publicQuerySearchAction.do?countyCode=203&apiSeqNo=30567 | AT13: Bagley, 2009 | AW13: Quartz | CC13: yes
A14: 42 | D14: 4220330565 | F14: Wildcatter | G14: Harrison | H14: TX | I14: 32.5787458 | J14: -94.2603606 | K14: DrillingInfo | L14: 9490 | M14: 9508 | N14: Sandstone | Q14: Cotton Valley Sandstone | R14: Davis II Interval | T14: 5.4864 | U14: 1 | V14: Calculated from top and bottom depths in Bagley, 2009 | AB14: md | AC14: 0.15 | AD14: 0.01 | AE14: =(AC14+AD14)/2 -> 0.08 | AF14: 5 | AG14: Values from Bagley, 2009 | AM14: 5 | AN14: 1.5 | AO14: =(AM14+AN14)/2 -> 3.25 | AP14: 5 | AQ14: Values from Bagley, 2009| Uncertainty 1=empirical related to formation 5=assigned from calc. | AR14: core plug @ 9511 ft | AS14: http://webapps.rrc.texas.gov/DP/publicQuerySearchAction.do?countyCode=203&apiSeqNo=30567 | AT14: Bagley, 2009 | AW14: Quartz | CC14: yes
A15: 33 | F15: Henderson North Field | G15: Rusk | H15: TX | I15: 32.2389588 | J15: -94.80289874 | K15: Average of Field from DrillingInfo | L15: 10400 | M15: 10950 | N15: Sandstone | Q15: Cotton Valley Sandstone | T15: =75*0.3048 -> 22.86 | U15: 1 | V15: Average pay from Clawson, 1984 | AB15: md | AC15: 0.1 | AD15: 0 | AE15: 0.05 | AF15: 5 | AG15: Mathematica mean of values from Clawson, 1984 | AM15: 11 | AN15: 9 | AO15: 10 | AP15: 1 | AQ15: Values from Clawson, 1984| Uncertainty 1=empirical related to formation 5=assigned from calc. | AT15: Clawson, 1984 | AX15: stratigraphic | AY15: Gas dissolution | BA15: oil and gas | BB15: acidized and fractured | BI15: 1979-11-26 | BR15: 25-40 | BT15: Values from Clawson 1984 | BU15: 105700 | BV15: 5600 | BW15: 1 | BX15: IBHSIP Values from Clawson 1984 | BY15: 235 | BZ15: Farhenheit | CA15: 1 | CB15: Values from Clawson 1984 | CC15: yes | CD15: =IF(F15=$CC$1,AD15," ") -> 
A16: 11 | F16: Carthage Field | G16: Panola | H16: TX | I16: 32.10837085 | J16: -94.32012383 | K16: Average of Field from DrillingInfo | L16: 8400 | M16: 9700 | N16: Sandstone | Q16: Cotton Valley Sandstone | T16: =250*0.3048 -> 76.2 | U16: 1 | V16: Average pay from Drake and Pendleton, 1984 | AB16: md | AC16: 1 | AD16: 0 | AE16: 0.5 | AF16: 5 | AG16: Mathematical mean of values from Drake and Pendleton, 1984 | AM16: 8 | AN16: 8 | AO16: 8 | AP16: 1 | AQ16: Values from Drake and Pendleton, 1984| Uncertainty 1=empirical related to formation 5=assigned from calc. | AT16: Drake and Pendleton, 1984 | AX16: structural-stratigraphic | AY16: Pressure Depletion | BA16: oil and gas | BB16: acidized and fractured | BI16: 1970-04-08 | BR16: 35 | BT16: Values from Drake and Pendleton, 1984 | BU16: 124000 | BV16: 4800 | BW16: 1 | BX16: IBHSIP Values from Drake and Pendleton, 1984 | BY16: 240 | BZ16: Farhenheit | CA16: 1 | CB16: Values from Drake and Pendleton, 1984 | CC16: yes | CD16: =IF(F16=$CC$1,AD16," ") -> 
A17: 46 | F17: Oak Hill Field | G17: Rusk | H17: TX | I17: 32.33171232 | J17: -94.67394026 | K17: Average of Field from DrillingInfo | L17: 9072 | M17: 10454 | N17: Sandstone | Q17: Cotton Valley Sandstone | T17: =(0.3048)*280 -> 85.344 | U17: 1 | V17: Average pay from Farnham, 1984 | AB17: md | AC17: 0.03 | AD17: 0.03 | AE17: 0.03 | AF17: 1 | AG17: Values from Farnham, 1984 | AM17: 10 | AN17: 10 | AO17: 10 | AP17: 1 | AQ17: Values from Farnham, 1984| Uncertainty 1=empirical related to formation 5=assigned from calc. | AT17: Farnham, 1984 | AX17: structural-stratigraphic | AY17: Pressure Depletion | BA17: oil and gas | BB17: Fractured | BI17: 1971-01-26 | BR17: 40 | BT17: Values from Farnham, 1984 | BU17: 220475 | BV17: 3296 | BW17: 1 | BX17: IBHSIP Values from Farnham, 1984 | BY17: 222 | BZ17: Farhenheit | CA17: 1 | CB17: Values from Farnham, 1984 | CC17: yes | CD17: =IF(F17=$CC$1,AD17," ") -> 
A18: 27 | F18: Hallsville South Field | G18: Harrison | H18: TX | I18: 32.39407347 | J18: -94.47491801 | K18: Average of Field from DrillingInfo | L18: 9440 | M18: 10583 | N18: Sandstone | Q18: Cotton Valley Sandstone | T18: =260*0.3048 -> 79.248 | U18: 1 | V18: Average pay from Farnham, 1984 | AB18: md | AC18: 0.02 | AD18: 0.005 | AE18: 0.02 | AF18: 1 | AG18: Values from Farnham, 1984 | AM18: 9 | AN18: 9 | AO18: 9 | AP18: 1 | AQ18: Values from Farnham, 1984| Uncertainty 1=empirical related to formation 5=assigned from calc. | AT18: Farnham, 1984 | AX18: structural-stratigraphic | AY18: Pressure Depletion | BA18: oil and gas | BB18: Fractured | BI18: 1973-09-20 | BR18: 30 | BT18: Values from Farnham, 1984 | BU18: 230644 | BV18: 2435 | BW18: 1 | BX18: IBHSIP Values from Farnham, 1984 | BY18: 218 | BZ18: Farhenheit | CA18: 1 | CB18: Values from Farnham, 1984 | CC18: yes | CD18: =IF(F18=$CC$1,AD18," ") -> 
A19: 82 | F19: Oak Hill South Field | G19: Rusk | H19: TX | I19: 32.30393784 | J19: -94.64495826 | K19: Average of Field from DrillingInfo | L19: 10070 | N19: Sandstone | Q19: Cotton Valley Sandstone | AT19: Kosters et al., 1989 (Table 37) | AX19: struct-structual nose strat-faces change | BA19: gas and oil | BI19: 1979 | CC19: yes
A20: 78 | F20: Woodlawn Field | G20: Harrison | H20: TX | I20: 32.64741404 | J20: -94.33445331 | K20: Average of Field from DrillingInfo | L20: 9592 | N20: Sandstone | Q20: Cotton Valley Sandstone | T20: =25*0.3048 -> 7.62 | U20: 1 | V20: Net pay from Kosters et al., 1989 (Table 37) | AB20: md | AC20: 0.1 | AD20: 0.1 | AE20: 0.1 | AF20: 1 | AG20: Values from Kosters et al.,1989 (Table 37) | AM20: 8 | AN20: 8 | AO20: 8 | AP20: 1 | AQ20: Values from Kosters et al., 1989 (Table 37)| Uncertainty 1=empirical related to formation 5=assigned from calc. | AT20: Kosters et al., 1989 (Table 37) | AX20: structural-stratographic (structural nose and facies change) | BA20: oil and gas | BI20: 1965 | BY20: 260 | BZ20: Farhenheit | CA20: 1 | CB20: Values from Kosters et al., 1989 (Table 37) | CC20: yes
A21: 58 | F21: Waskom Field | G21: Harrison | H21: TX | I21: 32.46926047 | J21: -94.12634634 | K21: Average of Field from DrillingInfo | L21: 8544 | N21: Sandstone | Q21: Cotton Valley Sandstone | T21: =32*0.3048 -> 9.7536 | U21: 1 | V21: Net pay from Kosters et al., 1989 (Table 37) | AB21: md | AC21: 0.09 | AD21: 0.09 | AE21: 0.09 | AF21: 1 | AG21: Values from Kosters et al.,1989 (Table 37) | AM21: 12 | AN21: 12 | AO21: 12 | AP21: 1 | AQ21: Values from Kosters et al., 1989 (Table 37)| Uncertainty 1=empirical related to formation 5=assigned from calc. | AT21: Kosters et al., 1989 (Table 37) | AX21: struct-anticline, dome strat-facies change | BA21: gas and oil | BI21: 1955 | CA21: =IF(F21=$CA$1,AD21," ") ->  | CB21: =IF(F21=$CB$1,AD21," ") ->  | CC21: yes
A22: 52 | F22: Blocker Field | G22: Harrison | H22: TX | I22: 32.44886857 | J22: -94.41951575 | K22: Average of Field from DrillingInfo | L22: 9731 | N22: Sandstone | Q22: Cotton Valley Sandstone | T22: =188*0.3048 -> 57.3024 | U22: 1 | V22: Net pay from Kosters et al., 1989 (Table 37) | AT22: Kosters et al., 1989 (Table 37) | AX22: struct-structural nose strat-facies change | BA22: gas and oil | BI22: 1977 | CC22: yes
A23: 41 | F23: Oak Hilll Field | G23: Rusk | H23: TX | I23: 32.33171232 | J23: -94.67394026 | K23: Average of Field from DrillingInfo | L23: 10212 | N23: Sandstone | Q23: Cotton Valley Sandstone | T23: =386*0.3048 -> 117.6528 | U23: 1 | V23: Net pay from Kosters et al., 1989 (Table 37) | AB23: md | AC23: 0.03 | AD23: 0.03 | AE23: 0.03 | AF23: 1 | AG23: Values from Kosters et al.,1989 (Table 37) | AM23: 9 | AN23: 9 | AO23: 9 | AP23: 1 | AQ23: Values from Kosters et al., 1989 (Table 37)| Uncertainty 1=empirical related to formation 5=assigned from calc. | AT23: Kosters et al., 1989 (Table 37) | AX23: struct-faulted anticline strat-facies change | BA23: gas and oil | BI23: 1970 | BR23: 30 | BT23: Values from Kosters et al., 1989 (Table 37) | BV23: 3296 | BW23: 1 | BX23: Values from Kosters et al., 1989 (Table 37) | BY23: 270 | BZ23: Farhenheit | CA23: 1 | CB23: Values from Kosters et al., 1989 (Table 37) | CC23: yes
A24: 22 | F24: Dirgin Fields | G24: Rusk | H24: TX | I24: 32.23610036 | J24: -94.61296788 | K24: Average of Field from DrillingInfo | L24: 10133 | N24: Sandstone | Q24: Cotton Valley Sandstone | T24: =28*0.3048 -> 8.5344 | U24: 1 | V24: Net pay from Kosters et al., 1989 (Table 37) | AB24: md | AC24: 0.01 | AD24: 0.01 | AE24: 0.01 | AF24: 1 | AG24: Values from Kosters et al.,1989 (Table 37) | AM24: 7 | AN24: 7 | AO24: 7 | AP24: 1 | AQ24: Values from Kosters et al., 1989 (Table 37)| Uncertainty 1=empirical related to formation 5=assigned from calc. | AT24: Kosters et al., 1989 (Table 37) | AX24: struct- structural nose strat-facies change | BA24: gas and oil | BI24: 1976 | CB24: =IF(F24=$CB$1,AD24," ") ->  | CC24: yes
A25: 10 | F25: Carthage Field | G25: Panola | H25: TX | I25: 32.10837085 | J25: -94.32012383 | K25: Average of Field from DrillingInfo | L25: 8608 | N25: Sandstone | Q25: Cotton Valley Sandstone | T25: =96*0.3048 -> 29.2608 | U25: 1 | V25: Net pay from Kosters et al., 1989 (Table 37) | AB25: md | AC25: 0.01 | AD25: 0.01 | AE25: 0.01 | AF25: 1 | AG25: Values from Kosters et al.,1989 (Table 37) | AM25: 9 | AN25: 9 | AO25: 9 | AP25: 1 | AQ25: Values from Kosters et al., 1989 (Table 37)| Uncertainty 1=empirical related to formation 5=assigned from calc. | AT25: Kosters et al., 1989 (Table 37) | AX25: struct-faulted anticline strat-facies change | BA25: gas and oil | BI25: 1966 | BV25: 4700 | BW25: 1 | BX25: Kosters et al., 1989 (Table 37) | BY25: 248 | BZ25: Farhenheit | CA25: 1 | CB25: Values from Kosters et al., 1989 (Table 37) | CC25: yes
A26: 2 | F26: Bethany East Field | G26: Panola | H26: TX | I26: 32.30510407 | J26: -94.11388206 | K26: Average of Field from DrillingInfo | L26: 8110 | N26: Sandstone | Q26: Cotton Valley Sandstone | T26: =180*0.3048 -> 54.864 | U26: 1 | V26: Net pay from Kosters et al., 1989 (Table 37) | AB26: md | AC26: 0.1 | AD26: 0.1 | AE26: 0.1 | AF26: 1 | AG26: Values from Kosters et al.,1989 (Table 37) | AM26: 8 | AN26: 8 | AO26: 8 | AP26: 1 | AQ26: Values from Kosters et al., 1989 (Table 37)| Uncertainty 1=empirical related to formation 5=assigned from calc. | AT26: Kosters et al., 1989 (Table 37) | AX26: struct-facies change strat-faulted anticline | AY26: gas an oil | BI26: 1972 | BR26: 27 | BT26: Values from Kosters et al., 1989 (Table 37) | BV26: 4100 | BW26: 1 | BX26: Values from Kosters et al., 1989 (Table 37) | BY26: 245 | BZ26: Farhenheit | CA26: 1 | CB26: Values from Kosters et al., 1989 (Table 37) | CC26: yes | CW26: =IF($F$3=CV$1,$AD$3," ") ->  | CX26: =IF($F$3=CW$1,$AD$3," ") ->  | CY26: =IF($F$3=CV$1,$AD$3," ") ->  | CZ26: =IF($F$3=CY$1,$AD$3," ") ->  | DA26: =IF($F$3=CW$1,$AD$3," ") ->  | DB26: =IF($F$3=DA$1,$AD$3," ") ->  | DC26: =IF($F$3=DA$1,$AD$3," ") -> 
A27: 31 | F27: Henderson North Field | G27: Rusk | H27: TX | I27: 32.2389588 | J27: -94.80289874 | K27: Average of Field from DrillingInfo | L27: 10530 | N27: Sandstone | Q27: Cotton Valley Sandstone | T27: =58*0.3048 -> 17.6784 | U27: 1 | V27: Net pay from Kosters et al., 1989 (Table 38) | AB27: md | AC27: 0.05 | AD27: 0.05 | AE27: 0.05 | AF27: 1 | AG27: Values from Kosters et al., 1989 (Table 38) | AM27: 10 | AN27: 10 | AO27: 10 | AP27: 1 | AQ27: Values from Kosters et al., 1989 (Table 38)| Uncertainty 1=empirical related to formation 5=assigned from calc. | AT27: Kosters et al., 1989 (Table 38) | AX27: struct- anticline strat- facies change | AY27: solution gas | BA27: gas and oil | BI27: 1979 | BR27: 20 | BT27: values from Kosters et al., 1989 (Table 38) | BV27: 5600 | BW27: 1 | BX27: Values from Kosters et al., 1989 (Table 38) | BY27: 272 | BZ27: Farhenheit | CA27: 1 | CB27: Values from Kosters et al., 1989 (Table 38) | CC27: yes | CD27: =IF(F27=$CC$1,AD27," ") -> 
A28: 74 | D28: 4236530760 | F28: Carthage (Kyle No 2-A) | G28: Panola | H28: TX | I28: 32.104212 | J28: -94.32153 | K28: Texas Railroad Commission | N28: Sandstone | Q28: Cotton Valley Sandstone | R28: zone G | AB28: md | AC28: 0.05 | AD28: 0.05 | AE28: 0.05 | AF28: 1 | AG28: Values from Wilson, 1984 | AM28: 6.8 | AN28: 6.8 | AO28: 6.8 | AP28: 1 | AQ28: Values and Uncertainty from Wilson, 1984| Uncertainty 1=empirical related to formation 5=assigned from calc. | AT28: Wilson, 1984 | CC28: joe
A29: 73 | D29: 4236531224 | F29: Carthage (Neal No 2) | G29: Panola | H29: TX | I29: 32.072678 | J29: -94.270146 | K29: Texas Railroad Commission | N29: Sandstone | Q29: Cotton Valley Sandstone | R29: zone E | AB29: md | AC29: 0.03 | AD29: 0.03 | AE29: 0.03 | AF29: 1 | AG29: Values from Wilson, 1984 | AM29: 6.9 | AN29: 6.9 | AO29: 6.9 | AP29: 1 | AQ29: Values and Uncertainty from Wilson, 1984| Uncertainty 1=empirical related to formation 5=assigned from calc. | AT29: Wilson, 1984 | CC29: joe
A30: 72 | D30: 4236531224 | F30: Carthage (Neal No 2) | G30: Panola | H30: TX | I30: 32.072678 | J30: -94.270146 | K30: Texas Railroad Commission | N30: Sandstone | Q30: Cotton Valley Sandstone | R30: zone D | AB30: md | AC30: 0.04 | AD30: 0.04 | AE30: 0.04 | AF30: 1 | AG30: Values from Wilson, 1984 | AM30: 6.1 | AN30: 6.1 | AO30: 6.1 | AP30: 1 | AQ30: Values and Uncertainty from Wilson, 1984| Uncertainty 1=empirical related to formation 5=assigned from calc. | AT30: Wilson, 1984 | CC30: joe
A31: 71 | D31: 4236531224 | F31: Carthage (Neal No 2) | G31: Panola | H31: TX | I31: 32.072678 | J31: -94.270146 | K31: Texas Railroad Commission | N31: Sandstone | Q31: Cotton Valley Sandstone | R31: zone C | AB31: md | AC31: 0.04 | AD31: 0.04 | AE31: 0.04 | AF31: 1 | AG31: Values from Wilson, 1984 | AM31: 5.7 | AN31: 5.7 | AO31: 5.7 | AP31: 1 | AQ31: Values and Uncertainty from Wilson, 1984| Uncertainty 1=empirical related to formation 5=assigned from calc. | AT31: Wilson, 1984 | CC31: joe
A32: 70 | D32: 4236530638 | F32: Carthage (Caudle No 1) | G32: Panola | H32: TX | I32: 32.129584 | J32: -94.259844 | K32: Texas Railroad Commission | N32: Sandstone | Q32: Cotton Valley Sandstone | R32: zone G | AB32: md | AC32: 0.02 | AD32: 0.02 | AE32: 0.02 | AF32: 1 | AG32: Values from Wilson, 1984 | AM32: 6.3 | AN32: 6.3 | AO32: 6.3 | AP32: 1 | AQ32: Values and Uncertainty from Wilson, 1984| Uncertainty 1=empirical related to formation 5=assigned from calc. | AT32: Wilson, 1984 | CC32: joe
A33: 69 | D33: 4236530638 | F33: Carthage (Caudle No 1) | G33: Panola | H33: TX | I33: 32.129584 | J33: -94.259844 | K33: Texas Railroad Commission | N33: Sandstone | Q33: Cotton Valley Sandstone | R33: zone F | AB33: md | AC33: 0.06 | AD33: 0.06 | AE33: 0.06 | AF33: 1 | AG33: Values from Wilson, 1984 | AM33: 8 | AN33: 8 | AO33: 8 | AP33: 1 | AQ33: Values and Uncertainty from Wilson, 1984| Uncertainty 1=empirical related to formation 5=assigned from calc. | AT33: Wilson, 1984 | CC33: joe
A34: 68 | D34: 4236530638 | F34: Carthage (Caudle No 1) | G34: Panola | H34: TX | I34: 32.129584 | J34: -94.259844 | K34: Texas Railroad Commission | N34: Sandstone | Q34: Cotton Valley Sandstone | R34: zone B | AB34: md | AC34: 0.06 | AD34: 0.06 | AE34: 0.06 | AF34: 1 | AG34: Values from Wilson, 1984 | AM34: 6.4 | AN34: 6.4 | AO34: 6.4 | AP34: 1 | AQ34: Values and Uncertainty from Wilson, 1984| Uncertainty 1=empirical related to formation 5=assigned from calc. | AT34: Wilson, 1984 | CC34: joe
A35: 67 | D35: 4236530638 | F35: Carthage (Caudle No 1) | G35: Panola | H35: TX | I35: 32.129584 | J35: -94.259844 | K35: Texas Railroad Commission | N35: Sandstone | Q35: Cotton Valley Sandstone | R35: zone A | AB35: md | AC35: 0.33 | AD35: 0.33 | AE35: 0.33 | AF35: 1 | AG35: Values from Wilson, 1984 | AM35: 8.1 | AN35: 8.1 | AO35: 8.1 | AP35: 1 | AQ35: Values and Uncertainty from Wilson, 1984| Uncertainty 1=empirical related to formation 5=assigned from calc. | AT35: Wilson, 1984 | CC35: joe
A36: 66 | D36: 4236530251 | F36: Carthage (Williamson No.3) | G36: Panola | H36: TX | I36: 32.097682 | J36: -94.226187 | K36: USGS 7.5 min Quadrangle map | L36: 9026 | M36: 9087 | N36: Sandstone | Q36: Cotton Valley Sandstone | R36: zone F | AB36: md | AC36: 0.04 | AD36: 0.04 | AE36: 0.04 | AF36: 1 | AG36: Values from Wilson, 1984 | AM36: 5.8 | AN36: 5.8 | AO36: 5.8 | AP36: 1 | AQ36: Values and Uncertainty from Wilson, 1984| Uncertainty 1=empirical related to formation 5=assigned from calc. | AT36: Wilson, 1984 | CC36: joe
A37: 65 | D37: 4236530251 | F37: Carthage (Williamson No.3) | G37: Panola | H37: TX | I37: 32.097682 | J37: -94.226187 | K37: USGS 7.5 min Quadrangle map | L37: 8532 | M37: 8806 | N37: Sandstone | Q37: Cotton Valley Sandstone | R37: zone B | AB37: md | AC37: 0.04 | AD37: 0.04 | AE37: 0.04 | AF37: 1 | AG37: Values from Wilson, 1984 | AM37: 6.3 | AN37: 6.3 | AO37: 6.3 | AP37: 1 | AQ37: Values and Uncertainty from Wilson, 1984| Uncertainty 1=empirical related to formation 5=assigned from calc. | AT37: Wilson, 1984 | CC37: joe
A38: 64 | D38: 4236530251 | F38: Carthage (Williamson No.3) | G38: Panola | H38: TX | I38: 32.097682 | J38: -94.226187 | K38: USGS 7.5 min Quadrangle map | L38: 8427 | M38: 8532 | N38: Sandstone | Q38: Cotton Valley Sandstone | R38: zone A | AB38: md | AC38: 0.03 | AD38: 0.03 | AE38: 0.03 | AF38: 1 | AG38: Values from Wilson, 1984 | AM38: 6.2 | AN38: 6.2 | AO38: 6.2 | AP38: 1 | AQ38: Values and Uncertainty from Wilson, 1984| Uncertainty 1=empirical related to formation 5=assigned from calc. | AT38: Wilson, 1984 | CC38: joe
A39: 37 | F39: Carthage Field | G39: Panola | H39: TX | I39: 32.10837085 | J39: -94.32012383 | K39: Average of Field from DrillingInfo | L39: 4040 | N39: Limestone | Q39: Glen Rose Limestone | T39: =36*0.3048 -> 10.9728 | U39: 1 | V39: Net pay from Kosters et al., 1989 (Table 40) | AT39: Kosters et al., 1989 (Table 40) | AX39: struct- anticline-dome | BA39: gas and oil | BI39: 1949 | CC39: yes
A40: 9.2 | F40: Carthage Field N | G40: Panola | H40: TX | I40: 32.10837085 | J40: -94.32012383 | K40: Average of Field from DrillingInfo | L40: 3762 | N40: Limestone | Q40: Glen Rose Limestone | T40: =32*0.3048 -> 9.7536 | U40: 1 | V40: Net pay from Kosters et al., 1989 (Table 40) | AX40: structural (anticline) | BA40: gas | BI40: 1966 | CC40: yes
A41: 32 | F41: Willow Springs Field | G41: Gregg | H41: TX | I41: 32.52132664 | J41: -94.78636421 | K41: Average of Field from DrillingInfo | L41: 6807 | N41: Limestone | Q41: Henderson Limestone | T41: =25*0.3048 -> 7.62 | U41: 1 | V41: Net pay from Kosters et al., 1989 (Table 41) | AT41: Kosters et al., 1989 (Table 41) | AX41: structural (anticline) | BA41: gas | BI41: 1952 | CC41: yes
A42: 51 | F42: Overton North Field | G42: Rusk | H42: TX | I42: 32.1986929 | J42: -95.0224664 | K42: Average of Field from DrillingInfo | L42: 7841 | M42: 7850 | N42: Limestone | Q42: Pettet Limestone | T42: =0.3048*6.1 -> 1.85928 | U42: 1 | V42: Average pay from Jasper and Berkoben, 1989 | AB42: md | AC42: 500 | AD42: 0 | AE42: 250 | AF42: 5 | AG42: Mathematical mean of values taken form Jasper and Berkoben, 1989 | AM42: 18 | AN42: 6 | AO42: =(18+6)/2 -> 12 | AP42: 5 | AQ42: Mean of values from Jasper and Berkoben | Uncertainty 1=empirical related to formation 5=assigned from calc. | AT42: Jasper and Berkoben, 1989 | AX42: stratigraphic | AY42: solution gas drive | BA42: oil and gas | BI42: 1979-06-03 | BR42: 18.5-47 | BT42: Values from Jasper and Berkoben 1989 | BV42: 3723 | BW42: 1 | BX42: IBHSIP Values from Jasper and Berkoben 1989 | BY42: 230 | BZ42: Farhenheit | CA42: 1 | CB42: Values from Jasper and Berkoben 1989 | CC42: yes | CD42: =IF(F42=$CC$1,AD42," ") -> 
A43: 25 | F43: Hallsville Northeast Field | G43: Harrison | H43: TX | I43: 32.60973675 | J43: -94.41773622 | K43: Average of Field from DrillingInfo | L43: 6522 | M43: 6897 | N43: Limestone | Q43: Pettet Limestone | T43: =7.3*0.3048 -> 2.22504 | U43: 1 | V43: Values from Jones, 1964 | AB43: md | AC43: 31.7 | AD43: 31.7 | AE43: 31.7 | AF43: 1 | AG43: Values from Jones, 1964 | AM43: 15.8 | AN43: 15.8 | AO43: 15.8 | AP43: 1 | AQ43: Values from Jones, 1964| Uncertainty 1=empirical related to formation 5=assigned from calc. | AT43: Jones, 1964 | AX43: stratigraphic | AY43: gas solution | BA43: oil and gas | BI43: 1956 | BR43: 24.9 | BT43: Values from Jones, 1964 | BV43: 2846 | BW43: 1 | BX43: IBHSIP Values from Jones 1964 | CB43: =IF(F43=$CB$1,AD43," ") ->  | CC43: yes | CD43: =IF(F43=$CC$1,AD43," ") -> 
A44: 6 | F44: Bethany Field | G44: Panola | H44: TX | I44: 32.35547352 | J44: -94.18728978 | K44: Average of Field from DrillingInfo | L44: 5800 | N44: Limestone | Q44: Pettet Limestone | T44: =34*0.3048 -> 10.3632 | U44: 1 | V44: Net pay from Kosters et al., 1989 (Table 40) | AB44: md | AC44: 17 | AD44: 5 | AE44: 8 | AF44: 1 | AG44: Values from Kosters et al., 1989 (Table 40) | AM44: 16 | AN44: 16 | AO44: 16 | AP44: 1 | AQ44: Values from Kosters et al., 1989 (Table 40)| Uncertainty 1=empirical related to formation 5=assigned from calc. | AT44: Kosters et al., 1989 (Table 40) | AX44: structural-stratigraphic (faulted anticline and facies change) | AY44: solution gas | BA44: gas | BI44: 1948 | BV44: 2720 | BW44: 1 | BX44: Values from Kosters et al., 1989 (Table 40) | CB44: =IF(F44=$CB$1,AD44," ") ->  | CC44: yes | CD44: =IF(F44=$CC$1,AD44," ") -> 
A45: 5 | F45: Bethany Field | G45: Panola | H45: TX | I45: 32.35547352 | J45: -94.18728978 | K45: Average of Field from DrillingInfo | L45: 6130 | N45: Limestone | Q45: Pettet Limestone | T45: =19*0.3048 -> 5.7912 | U45: 1 | V45: Net pay from Kosters et al., 1989 (Table 40) | AB45: md | AC45: 40 | AD45: 40 | AE45: 40 | AF45: 1 | AG45: Values from Kosters et al., 1989 (Table 40) | AM45: 15 | AN45: 15 | AO45: 15 | AP45: 1 | AQ45: Values from Kosters et al., 1989 (Table 40)| Uncertainty 1=empirical related to formation 5=assigned from calc. | AT45: Kosters et al., 1989 (Table 40) | AX45: structural-stratigraphic (faulted anticline and facies change) | AY45: Pressure Depletion | BA45: gas | BI45: 1948 | BR45: 34 | BT45: Values from Kosters et al., 1989 (Table 40) | CB45: =IF(F45=$CB$1,AD45," ") ->  | CC45: yes | CD45: =IF(F45=$CC$1,AD45," ") -> 
A46: 9 | F46: Carthage Field | G46: Panola | H46: TX | I46: 32.10837085 | J46: -94.32012383 | K46: Average of Field from DrillingInfo | L46: 6050 | N46: Limestone | Q46: Pettet Limestone | T46: =34*0.3048 -> 10.3632 | U46: 1 | V46: Net pay from Kosters et al., 1989 (Table 40) | AB46: md | AC46: 110 | AD46: 2 | AE46: 35 | AF46: 1 | AG46: Values from Kosters et al., 1989 (Table 40) | AM46: 18 | AN46: 18 | AO46: 18 | AP46: 1 | AQ46: Values from Kosters et al., 1989 (Table 40)| Uncertainty 1=empirical related to formation 5=assigned from calc. | AT46: Kosters et al., 1989 (Table 40) | AX46: struct-anticline,dome strat- facies change | AY46: Pressure Depletion | BA46: gas and oil | BI46: 1942 | BR46: 10 | BT46: Values from Kosters et al., 1989 (Table 40) | BV46: 3265 | BW46: 1 | BX46: Values from Kosters et al., 1989 (Table 40) | BY46: 209 | BZ46: Farhenheit | CA46: 1 | CB46: Values from Kosters et al., 1989 (Table 40) | CC46: yes | CD46: =IF(F46=$CC$1,AD46," ") -> 
A47: 9.1 | F47: Carthage Field | G47: Panola | H47: TX | I47: 32.10837085 | J47: -94.32012383 | K47: Average of Field from DrillingInfo | L47: 5870 | N47: Limestone | Q47: Pettet Limestone | T47: =10*0.3048 -> 3.048 | U47: 1 | V47: Net pay from Kosters et al., 1989 (Table 40) | AB47: md | AC47: 94 | AD47: 1.4 | AE47: 20 | AF47: 1 | AG47: Values from Kosters et al., 1989 (Table 40) | AN47: 17 | AO47: 17 | AP47: 1 | AQ47: Values from Kosters et al., 1989 (Table 40)| Uncertainty 1=empirical related to formation 5=assigned from calc. | AX47: structural-stratigraphic (anticline and facies change) | AY47: Pressure Depletion | BA47: gas | BI47: 1936 | BR47: 30 | BT47: Values from Kosters et al., 1989 (Table 40) | BV47: 3085 | BW47: 1 | BX47: Values from Kosters et al., 1989 (Table 40) | BY47: 207 | BZ47: Farhenheit | CA47: 1 | CB47: Values from Kosters et al., 1989 (Table 40) | CC47: yes
A48: 79 | F48: Hallsville South Field | G48: Harrison | H48: TX | I48: 32.39407347 | J48: -94.47491801 | K48: Average of Field from DrillingInfo | L48: 6536 | N48: Limestone | Q48: Pettet Limestone | AT48: Kosters et al., 1989 (Table 40) | AX48: stratigraphic (facies change) | BA48: gas | BI48: 1952 | CC48: yes
A49: 19 | F49: Scottsville North Field | G49: Harrison | H49: TX | I49: 32.54316587 | J49: -94.15106329 | K49: Average of Field from DrillingInfo | L49: 6173 | N49: Limestone | Q49: Pettet Limestone | T49: =14*0.3048 -> 4.2672 | U49: 1 | V49: Net pay from Kosters et al., 1989 (Table 40) | AT49: Kosters et al., 1989 (Table 40) | AX49: stratigraphic (facies change) | BA49: gas | BI49: 1954 | CC49: yes
A50: 17 | F50: Waskom Field | G50: Harrison | H50: TX | I50: 32.46926047 | J50: -94.12634634 | K50: Average of Field from DrillingInfo | L50: 6000 | N50: Limestone | Q50: Pettet Limestone | T50: =11*0.3048 -> 3.3528 | U50: 1 | V50: Net pay from Kosters et al., 1989 (Table 40) | AT50: Kosters et al., 1989 (Table 40) | AX50: structural (anticline) | BA50: gas | BI50: 1949 | CC50: yes
A51: 40 | F51: Waskom Field | G51: Harrison | H51: TX | I51: 32.46926047 | J51: -94.12634634 | K51: Average of Field from DrillingInfo | L51: 5635 | N51: Limestone | Q51: Pettet Limestone | T51: =49*0.3048 -> 14.9352 | U51: 1 | V51: Net pay from Kosters et al., 1989 (Table 40) | AT51: Kosters et al., 1989 (Table 40) | AX51: structural (anticline) | BA51: gas | BI51: 1950 | CC51: yes
A52: 81 | F52: Woodlawn Field | G52: Harrison | H52: TX | I52: 32.64741404 | J52: -94.33445331 | K52: Average of Field from DrillingInfo | L52: 6500 | N52: Limestone | Q52: Pettet Limestone | T52: =6*0.3048 -> 1.8288 | U52: 1 | V52: Net pay from Kosters et al., 1989 (Table 40) | AB52: md | AC52: 120 | AD52: 3 | AE52: 74 | AF52: 1 | AG52: Values from Kosters et al., 1989 (Table 40) | AM52: 13 | AN52: 13 | AO52: 13 | AP52: 1 | AQ52: Values from Kosters et al., 1989 (Table 40)| Uncertainty 1=empirical related to formation 5=assigned from calc. | AT52: Kosters et al., 1989 (Table 40) | AX52: structural-stratographic (structural nose and facies change) | AY52: solution gas and gas-cap expansion | BI52: 1951 | BR52: 18 | BT52: Values from Kosters et al., 1989 (Table 40) | BV52: 3075 | BW52: 1 | BX52: Values from Kosters et al., 1989 (Table 40) | CA52: =IF(F52=$CA$1,AD52," ") ->  | CB52: =IF(F52=$CB$1,AD52," ") ->  | CC52: yes | CD52: =IF(F52=$CC$1,AD52," ") -> 
A53: 20 | F53: Danville Field | G53: Rusk | H53: TX | I53: 32.39029228 | J53: -94.80537203 | K53: Average of Field from DrillingInfo | L53: 7381 | N53: Limestone | Q53: Pettet Limestone | T53: =10*0.3048 -> 3.048 | U53: 1 | V53: Net pay from Kosters et al., 1989 (Table 41) | AB53: md | AC53: 110 | AD53: 110 | AE53: 110 | AF53: 1 | AG53: Values from Kosters et al., 1989 (Table 41) | AM53: 16 | AN53: 16 | AO53: 16 | AP53: 1 | AQ53: Values from Kosters et al., 1989 (Table 41)| Uncertainty 1=empirical related to formation 5=assigned from calc. | AT53: Kosters et al., 1989 (Table 41) | AX53: structural-stratographic (structural nose and facies change) | BA53: gas | BI53: 1959 | BY53: 232 | BZ53: Farhenheit | CA53: 1 | CB53: Values from Kosters et al., 1989 (Table 41) | CC53: yes | CD53: =IF(F53=$CC$1,AD53," ") -> 
A54: 29 | F54: Henderson Field | G54: Rusk | H54: TX | I54: 32.21108822 | J54: -94.82513761 | K54: Average of Field from DrillingInfo | L54: 7280 | N54: Limestone | Q54: Pettet Limestone | T54: =15*0.3048 -> 4.572 | U54: 1 | V54: Net pay from Kosters et al., 1989 (Table 41) | AB54: md | AC54: 300 | AD54: 1 | AE54: 72 | AF54: 1 | AG54: Values from Kosters et al., 1989 (Table 41) | AM54: 13 | AN54: 13 | AO54: 13 | AP54: 1 | AQ54: Values from Kosters et al., 1989 (Table 41)| Uncertainty 1=empirical related to formation 5=assigned from calc. | AT54: Kosters et al., 1989 (Table 41) | AX54: structural (anticline) | AY54: gas-cap expansion | BA54: gas | BI54: 1943 | BR54: 27 | BT54: Values from Kosters et al., 1989 (Table 41) | BV54: 3492 | BW54: 1 | BX54: Values from Kosters et al., 1989 (Table 41) | CB54: =IF(F54=$CB$1,AD54," ") ->  | CC54: yes | CD54: =IF(F54=$CC$1,AD54," ") -> 
A55: 34 | F55: Lansing North Field | G55: Harrison | H55: TX | I55: 32.59495117 | J55: -94.6590982 | K55: Average of Field from DrillingInfo | L55: 7274 | N55: Limestone | Q55: Pettet Limestone | T55: =32*0.3048 -> 9.7536 | U55: 1 | V55: Net pay from Kosters et al., 1989 (Table 41) | AT55: Kosters et al., 1989 (Table 41) | AX55: structural-stratigraphic (anticline and facies change) | BA55: gas | BI55: 1958 | CC55: yes
A56: 14 | F56: Shiloh Field | G56: Rusk | H56: TX | I56: 32.02051089 | J56: -94.67022117 | K56: Average of Field from DrillingInfo | L56: 7297 | N56: Limestone | Q56: Pettet Limestone | T56: =9*0.3048 -> 2.7432 | U56: 1 | V56: Net pay from Kosters et al., 1989 (Table 41) | AT56: Kosters et al., 1989 (Table 41) | AX56: structural-stratigraphic (faulted anticline and facies change) | BA56: gas | BI56: 1960 | CC56: yes
A57: 38 | F57: Willow Springs Field | G57: Gregg | H57: TX | I57: 32.52132664 | J57: -94.78636421 | K57: Average of Field from DrillingInfo | L57: 7354 | N57: Limestone | Q57: Pettet Limestone | T57: =40*0.3048 -> 12.192 | U57: 1 | V57: Net pay from Kosters et al., 1989 (Table 41) | AT57: Kosters et al., 1989 (Table 41) | AX57: structural (anticline) | BA57: gas | BI57: 1955 | CC57: yes
A58: 23 | F58: Ezim Field | G58: Rusk | H58: TX | I58: 31.87080817 | J58: -94.88015664 | K58: Average of Field from DrillingInfo | L58: 7856 | M58: 8008 | N58: Limestone | Q58: Pettet Limestone | T58: =4*0.3048 -> 1.2192 | U58: 1 | V58: Pay from Mize, 1989 | AB58: md | AC58: 2000 | AD58: 50 | AE58: 975 | AF58: 5 | AG58: Mathematical mean of values from Mize, 1989 | AM58: 23 | AN58: 15 | AO58: =(AM58+AN58)/2 -> 19 | AP58: 5 | AQ58: Mean of values from Mize, 1989| Uncertainty 1=empirical related to formation 5=assigned from calc. | AT58: Mize, 1989 | AX58: stratigraphic | AY58: gas expansion | BA58: oil and gas | BC58: 0.91 | BI58: 1981-02-18 | BR58: 25-50 | BT58: Values from Mize, 1989 | BV58: 3963 | BW58: 1 | BX58: IFHSIP Values from Mize, 1989 | BZ58: Farhenheit | CA58: 1 | CB58: Values from Mize, 1989 | CC58: yes | CD58: =IF(F58=$CC$1,AD58," ") -> 
A59: 76 | F59: Willow Springs Field | G59: Gregg | H59: TX | I59: 32.52132664 | J59: -94.78636421 | K59: Average of Field from DrillingInfo | N59: Limestone | Q59: Pettet Limestone | T59: =30*0.3048 -> 9.144 | U59: 1 | V59: Value from Scurlock 1949 | AQ59: Lenticular porosity | AT59: Scurlock, 1949 | AX59: Anticline | BC59: =35*0.3048 -> 10.668 | BI59: 1938 | BS59: Negligible amt. | CC59: yes
A60: 21 | F60: Danville Field | G60: Gregg and Rusk | H60: TX | I60: 32.39029228 | J60: -94.80537203 | K60: Average of Field from DrillingInfo | L60: 7204 | M60: 7300 | N60: Limestone | Q60: Pettet Limestone | T60: =16*0.3048 -> 4.8768 | U60: 1 | V60: Average pay from Snell and Robbins, 1989 | AB60: md | AC60: 819 | AD60: 0.01 | AE60: 19.6 | AF60: 1 | AG60: Values from Snell and Robbins, 1989 | AM60: 21.4 | AN60: 8 | AO60: 13.5 | AP60: 1 | AQ60: Values from Snell and Robbins, 1989|Uncertainty 1=empirical related to formation 5=assigned from calc. | AT60: Snell and Robbins, 1989 | AX60: structural-stratigraphic | AY60: gas solution and water drive from east flowing in at 6858 ft (2090 m) | BA60: gas and oil | BB60: Small to moderate acid treatment | BI60: 1960-03-13 | BR60: 31-50 | BT60: Value from Snell and Robbins, 1989 | BV60: 3580 | BW60: 1 | BX60: IFHSIP Value from Snell and Robbins, 1989 | BY60: 232 | BZ60: Farhenheit | CA60: 1 | CB60: Value from Snell and Robbins, 1989 | CC60: yes | CD60: =IF(F60=$CC$1,AD60," ") -> 
A61: 75 | F61: Woodlawn Field | G61: Harrison | H61: TX | I61: 32.64741404 | J61: -94.33445331 | K61: Average of Field from DrillingInfo | L61: 6280 | M61: 6575 | N61: Limestone | Q61: Pettet Limestone | T61: =24*0.3048 -> 7.3152 | U61: 1 | V61: From cross-section in Tefft, 1950 and production thickness | AT61: Tefft, 1950 | AZ61: NO Water Produced | BC61: =279*0.3048 -> 85.0392 | BI61: 1949 | CC61: yes
A62: 57 | F62: Marshall Field | G62: Harrison | H62: TX | I62: 32.621785 | J62: -94.345211 | K62: Estimated on Google Maps using location description from Marshall Field Report (Teft, 1950) | L62: 6400 | M62: 6650 | N62: Limestone | Q62: Pettet Limestone | T62: 83.2 | U62: 1 | V62: From cross-section in Tefft, 1950 and production thickness | AL62: streaks | AT62: Tefft, 1950 | AZ62: none | BC62: =273*0.3048 -> 83.2104 | BI62: 1945 | BO62: none | CC62: yes
A63: 39 | F63: Bethany Field | G63: Panola | H63: TX | I63: 32.35547352 | J63: -94.18728978 | K63: Average of Field from DrillingInfo | L63: 4700 | N63: Limestone | Q63: Rodessa Limestone | T63: =40*0.3048 -> 12.192 | U63: 1 | V63: Net pay from Kosters et al., 1989 (Table 40) | AT63: Kosters et al., 1989 (Table 40) | AX63: structural-stratigraphic (faulted anticline and facies change) | AY63: Pressure Depletion | BA63: gas | BI63: 1948 | CC63: yes
A64: 7 | F64: Carthage Field | G64: Panola | H64: TX | I64: 32.10837085 | J64: -94.32012383 | K64: Average of Field from DrillingInfo | L64: 4900 | N64: Limestone | Q64: Rodessa Limestone | R64: Hill Limestone | T64: =14*0.3048 -> 4.2672 | U64: 1 | V64: Net pay from Kosters et al., 1989 (table 40) | AB64: md | AC64: 200 | AD64: 5.3 | AE64: 87 | AF64: 1 | AG64: Values from Kosters et al., 1989 (Table 40) | AM64: 21 | AN64: 21 | AO64: 21 | AP64: 1 | AQ64: Values from Kosters et al., 1989 (Table 40)| Uncertainty 1=empirical related to formation 5=assigned from calc. | AT64: Kosters et al., 1989 (Table 40) | AX64: struct-anticline,dome | AY64: Pressure Depletion | BA64: gas and oil | BI64: 1936 | BR64: 20 | BT64: Values from Kosters et al., 1989 (Table 40) | BV64: 2636 | BW64: 1 | BX64: Values from Kosters et al., 1989 (Table 40) | BY64: 186 | BZ64: Farhenheit | CA64: 1 | CB64: Values from Kosters et al., 1989 (Table 40) | CC64: yes | CD64: =IF(F64=$CC$1,AD64," ") -> 
A65: 53 | F65: Pine Hill S.E. Field | G65: Panola | H65: TX | I65: 32.09194072 | J65: -94.5794542 | K65: Average of Field from DrillingInfo | L65: 5858 | N65: Limestone | Q65: Rodessa Limestone | T65: =5*0.3048 -> 1.524 | U65: 1 | V65: Net pay from Kosters et al., 1989 (Table 40) | AB65: md | AC65: 100 | AD65: 100 | AE65: 100 | AF65: 1 | AG65: Values from Kosters et al., 1989 (Table 40) | AM65: 17 | AN65: 17 | AO65: 17 | AP65: 1 | AQ65: Values from Kosters et al., 1989 (Table 40)| Uncertainty 1=empirical related to formation 5=assigned from calc. | AT65: Kosters et al., 1989 (Table 40) | AX65: stratigraphic (facies change) | BA65: gas | BI65: 1979 | BR65: 19 | BT65: Values from Kosters et al., 1989 (Table 40) | BY65: 174 | BZ65: Farhenheit | CA65: 1 | CB65: Values from Kosters et al., 1989 (Table 40) | CC65: yes | CD65: =IF(F65=$CC$1,AD65," ") -> 
A66: 60 | F66: Waskom Field | G66: Harrison | H66: TX | I66: 32.46926047 | J66: -94.12634634 | K66: Average of Field from DrillingInfo | L66: 4830 | N66: Limestone | Q66: Rodessa Limestone | S66: Hill | AB66: md | AC66: 20 | AD66: 20 | AE66: 20 | AF66: 1 | AG66: Values from Kosters et al., 1989 (Table 40) | AM66: 14 | AN66: 14 | AO66: 14 | AP66: 1 | AQ66: Values from Kosters et al., 1989 (Table 40)| Uncertainty 1=empirical related to formation 5=assigned from calc. | AT66: Kosters et al., 1989 (Table 40) | AX66: structural-stratigraphic (anticline and facies change) | BA66: gas | BI66: 1947 | BR66: 25 | BT66: Values from Kosters et al., 1989 (Table 40) | CA66: =IF(F66=$CA$1,AD66," ") ->  | CB66: =IF(F66=$CB$1,AD66," ") ->  | CC66: yes | CD66: =IF(F66=$CC$1,AD66," ") -> 
A67: 16 | F67: Woodlawn Field | G67: Harrison | H67: TX | I67: 32.64741404 | J67: -94.33445331 | K67: Average of Field from DrillingInfo | L67: 5692 | N67: Limestone | Q67: Rodessa Limestone | T67: =11*0.3048 -> 3.3528 | U67: 1 | V67: Net pay from Kosters et al., 1989 (Table 40) | AT67: Kosters et al., 1989 (Table 40) | AX67: structural-stratographic (structural nose and facies change) | BI67: 1951 | CC67: yes
A68: 36 | F68: Lansing North Field | G68: Harrison | H68: TX | I68: 32.59495117 | J68: -94.6590982 | K68: Average of Field from DrillingInfo | L68: 6734 | N68: Limestone | Q68: Rodessa Limestone | T68: =15*0.3048 -> 4.572 | U68: 1 | V68: Net pay from Kosters et al., 1989 (Table 41) | AB68: md | AC68: 148 | AD68: 0.1 | AE68: 15 | AF68: 1 | AG68: Values from Kosters et al., 1989 (Table 41) | AM68: 14 | AN68: 14 | AO68: 14 | AP68: 1 | AQ68: Values from Kosters et al., 1989 (Table 41)| Uncertainty 1=empirical related to formation 5=assigned from calc. | AT68: Kosters et al., 1989 (Table 41) | AX68: structural-stratigraphic (faulted anticline and facies change) | AY68: Pressure Depletion | BA68: gas | BI68: 1945 | BV68: 3191 | BW68: 1 | BX68: Values from Kosters et al., 1989 (Table 41) | CB68: =IF(F68=$CB$1,AD68," ") ->  | CC68: yes | CD68: =IF(F68=$CC$1,AD68," ") -> 
A69: 54 | F69: Pone Field | G69: Rusk | H69: TX | I69: 32.0896125 | J69: -94.82986819 | K69: Average of Field from DrillingInfo | L69: 6552 | N69: Limestone | Q69: Rodessa Limestone | R69: Gloyd Limestone | T69: =5*0.3048 -> 1.524 | U69: 1 | V69: Net pay from Kosters et al., 1989 (Table 41) | AB69: md | AC69: 166 | AD69: 166 | AE69: 166 | AF69: 1 | AG69: Values from Kosters et al., 1989 (Table 41) | AM69: 15 | AN69: 15 | AO69: 15 | AP69: 1 | AQ69: Values from Kosters et al., 1989 (Table 41)| Uncertainty 1=empirical related to formation 5=assigned from calc. | AT69: Kosters et al., 1989 (Table 41) | AX69: stratigraphic (facies change) | BA69: gas | BI69: 1959 | BY69: 200 | BZ69: Farhenheit | CA69: 1 | CB69: Values from Kosters et al., 1989 (Table 41) | CC69: yes | CD69: =IF(F69=$CC$1,AD69," ") -> 
A70: 80 | F70: Whelan Field | G70: Harrison | H70: TX | I70: 32.68928958 | J70: -94.59570864 | K70: Average of Field from DrillingInfo | L70: 6776 | N70: Limestone | Q70: Rodessa Limestone | AT70: Kosters et al., 1989 (Table 41) | AX70: structural-stratigraphic (anticline and facies change) | BA70: gas | BV70: 2986 | BW70: 1 | BX70: Values from Kosters et al., 1989 (Table 41) | CC70: yes
A71: 63 | F71: Willow Springs Field | G71: Gregg | H71: TX | I71: 32.52132664 | J71: -94.78636421 | K71: Average of Field from DrillingInfo | L71: 6750 | N71: Limestone | Q71: Rodessa Limestone | T71: =20*0.3048 -> 6.096 | U71: 1 | V71: Net pay from Kosters et al., 1989 (Table 41) | AB71: md | AC71: 69 | AD71: 0.01 | AE71: 38 | AF71: 1 | AG71: Values from Kosters et al., 1989 (Table 41) | AM71: 12 | AN71: 12 | AO71: 12 | AP71: 1 | AQ71: Values from Kosters et al., 1989 (Table 41)| Uncertainty 1=empirical related to formation 5=assigned from calc. | AT71: Kosters et al., 1989 (Table 41) | AX71: structural (anticline) | AY71: Pressure Depletion | BA71: gas | BI71: 1941 | BR71: 25 | BT71: Values from Kosters et al., 1989 (Table 41) | CA71: =IF(F71=$CA$1,AD71," ") ->  | CB71: =IF(F71=$CB$1,AD71," ") ->  | CC71: yes | CD71: =IF(F71=$CC$1,AD71," ") -> 
A72: 1 | F72: Shady Lane Field | G72: Harrison | H72: TX | I72: 32.5156999 | J72: -94.34145236 | K72: Average of Field from DrillingInfo | L72: 5981 | M72: 5986 | N72: Limestone | Q72: Rodessa Limestone | T72: =3*0.3048 -> 0.9144 | U72: 1 | V72: Average pay from Seewald, 1989 | AM72: 20 | AN72: 6 | AO72: =(20+6)/2 -> 13 | AP72: 5 | AQ72: Mean value calculated from values in Seewald, 1989| Uncertainty 1=empirical related to formation 5=assigned from calc. | AT72: Seewald, 1989 | AX72: stratigraphic | AY72: Pressure Depletion | BA72: gas | BB72: acidized | BC72: 0.91 | BD72: 26 | BI72: 1985-08-09 | BR72: 43 | BT72: Value from Seewald, 1989 | BV72: 2450 | BW72: 1 | BX72: Value from Seewald, 1989 | BY72: 182 | BZ72: Farhenheit | CA72: 1 | CB72: Value from Seewald, 1989 | CC72: yes
A73: 56 | F73: Tip Field | G73: Rusk | H73: TX | I73: 32.02270725 | J73: -94.8445769 | K73: Average of Field from DrillingInfo | L73: 6650 | M73: 6750 | N73: Limestone | Q73: Rodessa Limestone | T73: =4*0.3048 -> 1.2192 | U73: 1 | V73: Average pay from Shoemaker, 1989 | AB73: md | AC73: 10 | AD73: 4 | AE73: 4 | AF73: 1 | AG73: Values from Shoemaker, 1989 | AM73: 15 | AN73: 6 | AO73: 11 | AP73: 1 | AQ73: Values from Shoemaker, 1989|Uncertainty 1=empirical related to formation 5=assigned from calc. | AT73: Shoemaker, 1989 | AX73: stratigraphic | AY73: depletion drive | BA73: oil and gas | BB73: acidized | BE73: 1 | BF73: southern border along Mt. enterprise fault system | BG73: normal | BI73: 1985-01-04 | BR73: 20 | BT73: Values from Shoemaker, 1989 | BV73: 2794 | BW73: 1 | BX73: IBHSIP Values from Shoemaker, 1989 | BY73: 205 | BZ73: Farhenheit | CA73: 1 | CB73: Values from Shoemaker, 1989 | CC73: yes | CD73: =IF(F73=$CC$1,AD73," ") -> 
A74: 55 | F74: Scoober Creek Field | G74: Rusk | H74: TX | I74: 32.03650484 | J74: -94.92691969 | K74: Average of Field from DrillingInfo | L74: 6840 | M74: 7090 | N74: Limestone | Q74: Rodessa Limestone | T74: =8*0.3048 -> 2.4384 | U74: 1 | V74: Average pay from Shoemaker, 1989 | AB74: md | AC74: 20 | AD74: 4 | AE74: 4 | AF74: 1 | AG74: Values from Shoemaker, 1989 | AM74: 21 | AN74: 6 | AO74: 12 | AP74: 1 | AQ74: Values from Shoemaker, 1989|Uncertainty 1=empirical related to formation 5=assigned from calc. | AT74: Shoemaker, 1989 | AX74: stratigraphic | AY74: depletion drive | BA74: oil and gas | BB74: acidized | BE74: 1 | BF74: southern border along Mt. enterprise fault system | BG74: normal | BI74: 1971-09-27 | BR74: 20 | BT74: Values from Shoemaker, 1989 | BV74: 3563 | BW74: 1 | BX74: IBHSIP Values from Shoemaker, 1989 | BY74: 215 | BZ74: Farhenheit | CA74: 1 | CB74: Values from Shoemaker, 1989 | CC74: yes | CD74: =IF(F74=$CC$1,AD74," ") -> 
A75: 18 | F75: Scoober Creek Field | G75: Rusk | H75: TX | I75: 32.03650484 | J75: -94.92691969 | K75: Average of Field from DrillingInfo | L75: 6913 | N75: Sandstone | Q75: Rodessa Sandstone | T75: =13*0.3048 -> 3.9624 | U75: 1 | V75: Net pay from Kosters et al., 1989 (Table 41) | AT75: Kosters et al., 1989 (Table 41) | AX75: stratigraphic (facies change) | BA75: gas | BI75: 1971 | CC75: yes
A76: 49 | F76: Oak Hilll Field | G76: Rusk | H76: TX | I76: 32.33171232 | J76: -94.67394026 | K76: Average of Field from DrillingInfo | N76: Sandstone | Q76: Taylor Sandstone | AB76: md | AC76: 0.06 | AD76: 0.06 | AE76: 0.06 | AF76: 1 | AG76: Values from Vavra, 1991 | AM76: 6.1 | AN76: 6.1 | AO76: 6.1 | AP76: 1 | AQ76: Values from Vavra, 1991|Uncertainty 1=empirical related to formation 5=assigned from calc. | AR76: Permeanbility - air, Porosity - Helium | AT76: Vavra, 1991 | AW76: Quartz | BR76: 35 | CA76: =IF(F76=$CA$1,AD76," ") ->  | CB76: =IF(F76=$CB$1,AD76," ") ->  | CC76: yes | CD76: =IF(F76=$CC$1,AD76," ") -> 
A77: 35 | F77: Lansing North Field | G77: Harrison | H77: TX | I77: 32.59495117 | J77: -94.6590982 | K77: Average of Field from DrillingInfo | L77: 7328 | M77: 8003 | N77: Sandstone | P77: Limestone | Q77: Travis Peak Sandstone | T77: =(M77-L77)*0.3048 -> 205.74 | U77: 1 | V77: Top and bottom depths from cross-section in Schoeneck | AB77: md | AC77: 77 | AD77: 0 | AE77: =(AC77+AD77)/2 -> 38.5 | AF77: 1 | AG77: horizontal higher (ave for hor)/ vertical = 53.6 | AK77: extremely variable | AM77: 15 | AN77: 1 | AO77: =(AM77+AN77)/2 -> 8 | AP77: 5 | AQ77: Values from text of Schoeneck | AT77: Schoeneck, 1950 | AW77: Calcium Carbonate | AX77: structural-convex | BC77: 12.2 | BI77: 1949 | CB77: =IF(F77=$CB$1,AD77," ") ->  | CC77: yes
A78: 15 | F78: Cyril Field | G78: Rusk | H78: TX | I78: 32.19887062 | J78: -94.83431242 | K78: Average of Field from DrillingInfo | L78: 7530 | M78: 7650 | N78: Sandstone | Q78: Travis Peak Sandstone | T78: =14*0.3048 -> 4.2672 | U78: 1 | V78: Average pay from Clawson, 1989 | AB78: md | AC78: 200 | AD78: 1 | AE78: 100 | AF78: 5 | AG78: Values from Clawson 1989 | AM78: 18 | AN78: 9 | AO78: =(AM78+AN78)/2 -> 13.5 | AP78: 5 | AQ78: Mean of values from Clawson 1989| Uncertainty 1=empirical related to formation 5=assigned from calc. | AT78: Clawson, 1989 | AW78: Quartz | AX78: stratigraphic | AY78: solution gas drive | BA78: oil and gas | BB78: acidized | BI78: 1963-04-01 | BR78: 25-55 | BT78: Values from Clawson 1989 | BV78: 3550 | BW78: 1 | BX78: IBHSIP Values from Clawson 1989 | BY78: 200 | BZ78: Farhenheit | CA78: 1 | CB78: Values from Clawson 1989 | CC78: yes | CD78: =IF(F78=$CC$1,AD78," ") -> 
A79: 59 | F79: Waskom Field | G79: Harrison | H79: TX | I79: 32.46926047 | J79: -94.12634634 | K79: Average of Field from DrillingInfo | L79: 7404 | N79: Sandstone | Q79: Travis Peak Sandstone | T79: =36*0.3048 -> 10.9728 | U79: 1 | V79: Net pay from Kosters et al.,1989 (table 37) | AB79: md | AC79: 65 | AD79: 65 | AE79: 65 | AF79: 1 | AG79: Values from Kosters et al., 1989 (Table 37) | AM79: 17 | AN79: 17 | AO79: 17 | AP79: 1 | AQ79: Values from Kosters et al., 1989 (Table 37)| Uncertainty 1=empirical related to formation 5=assigned from calc. | AT79: Kosters et al., 1989 (Table 37) | AX79: struct anticline,dome strat-facies change | BA79: gas and oil | BI79: 1973 | BR79: 23 | BT79: Values from Kosters et al., 1989 (Table37) | BV79: 2795 | BW79: 1 | BX79: Values from Kosters et al., 1989 (Table 37) | BY79: 198 | BZ79: Farhenheit | CA79: 1 | CB79: Values from Kosters et al., 1989 (Table 37) | CC79: yes
A80: 50 | F80: Waskom Field | G80: Harrison | H80: TX | I80: 32.46926047 | J80: -94.12634634 | K80: Average of Field from DrillingInfo | L80: 6053 | N80: Sandstone | Q80: Travis Peak Sandstone | T80: =107*0.3048 -> 32.6136 | U80: 1 | V80: Net pay from Kosters et al., 1989 (Table 37) | AT80: Kosters et al., 1989 (Table 37) | AX80: struct anticline,dome strat-facies change | BA80: gas and oil | BI80: 1947 | CC80: yes
A81: 13 | F81: Carthage Field | G81: Panola | H81: TX | I81: 32.10837085 | J81: -94.32012383 | K81: Average of Field from DrillingInfo | L81: 6230 | N81: Sandstone | Q81: Travis Peak Sandstone | T81: =8*0.3048 -> 2.4384 | U81: 1 | V81: Net pay from Kosters et al., 1989 (Table 37) | AM81: 15 | AN81: 15 | AO81: 15 | AP81: 1 | AQ81: Values from Kosters et al., 1989 (Table 37)| Uncertainty 1=empirical related to formation 5=assigned from calc. | AT81: Kosters et al., 1989 (Table 37) | AX81: struct-anticline dome | BA81: gas and oil | BI81: 1945 | BV81: 3350 | CC81: yes
A82: 3 | F82: Bethany Field | G82: Panola | H82: TX | I82: 32.35547352 | J82: -94.18728978 | K82: Average of Field from DrillingInfo | L82: 6300 | N82: Sandstone | Q82: Travis Peak Sandstone | T82: =15*0.3048 -> 4.572 | U82: 1 | V82: Net pay from Kosters et al., 1989 (Table 37) | AB82: md | AC82: 115 | AD82: 115 | AE82: 115 | AF82: 1 | AG82: Values from Kosters et al., 1989 (Table 37) | AM82: 16 | AN82: 16 | AO82: 16 | AP82: 1 | AQ82: Values from Kosters et al., 1989 (Table 37)| Uncertainty 1=empirical related to formation 5=assigned from calc. | AT82: Kosters et al., 1989 (Table 37) | AX82: struct-facies change strat-faulted anticline | BA82: oil and gas | BI82: 1948 | BR82: 34 | BT82: Values from Kosters et al., 1989 (Table 37) | BV82: 3113 | BW82: 1 | BX82: Values from Kosters et al., 1989 (Table 37) | BY82: 206 | BZ82: Farhenheit | CA82: 1 | CB82: Values from Kosters et al., 1989 (Table 37) | CC82: yes
A83: 12 | F83: Danville Field | G83: Rusk | H83: TX | I83: 32.39029228 | J83: -94.80537203 | K83: Average of Field from DrillingInfo | L83: 7606 | N83: Sandstone | Q83: Travis Peak Sandstone | T83: =8*0.3048 -> 2.4384 | U83: 1 | V83: Net pay from Kosters et al., 1989 (Table 38) | AT83: Kosters et al., 1989 (Table 38) | AX83: structural-stratigraphic (faulted anticline and facies change) | BA83: oil and gas | BI83: 1959 | CC83: yes
A84: 28 | F84: Henderson Field | G84: Rusk | H84: TX | I84: 32.21108822 | J84: -94.82513761 | K84: Average of Field from DrillingInfo | L84: 7457 | N84: Sandstone | Q84: Travis Peak Sandstone | T84: =18*0.3048 -> 5.4864 | U84: 1 | V84: Net pay from Kosters et al., 1989 (Table 38) | AB84: md | AC84: 72 | AD84: 72 | AE84: 72 | AF84: 1 | AG84: Values from Kosters et al., 1989 (Table 38) | AM84: 18 | AN84: 18 | AO84: 18 | AP84: 1 | AQ84: Values from Kosters et al., 1989 (Table 38)| Uncertainty 1=empirical related to formation 5=assigned from calc. | AT84: Kosters et al., 1989 (Table 38) | AX84: struct-anticline | BA84: gas and oil | BI84: 1950 | BR84: 26 | BT84: Values from Kosters et al., 1989 (Table 38) | BV84: 3186 | BW84: 1 | BX84: Values from Kosters et al., 1989 (Table 38) | BY84: 185 | BZ84: Farhenheit | CA84: 1 | CB84: Values from Kosters et al., 1989 (Table 38) | CC84: yes | CD84: =IF(F84=$CC$1,AD84," ") -> 
A85: 30 | F85: Henderson South Field | G85: Rusk | H85: TX | I85: 32.11818615 | J85: -94.78199135 | K85: Average of Field from DrillingInfo | L85: 7450 | N85: Sandstone | Q85: Travis Peak Sandstone | T85: =24*0.3048 -> 7.3152 | U85: 1 | V85: Net pay from Kosters et al., 1989 (Table 38) | AT85: Kosters et al., 1989 (Table 38) | AX85: struct- faulted anticline strat- facies change | BA85: gas and oil | BI85: 1943 | CC85: yes
A86: 4 | F86: Henderson South Field | G86: Rusk | H86: TX | I86: 32.11818615 | J86: -94.78199135 | K86: Average of Field from DrillingInfo | L86: 7414 | N86: Sandstone | Q86: Travis Peak Sandstone | T86: =4*0.3048 -> 1.2192 | U86: 1 | V86: Net pay from Kosters et al., 1989 (Table 38) | AT86: Kosters et al., 1989 (Table 38) | AX86: struct- structural nose strat-facies change | BA86: gas and oil | BI86: 1965 | CC86: yes
A87: 62 | F87: Lansing North Field | G87: Harrison | H87: TX | I87: 32.59495117 | J87: -94.6590982 | K87: Average of Field from DrillingInfo | L87: 7906 | N87: Sandstone | Q87: Travis Peak Sandstone | T87: =430*0.3048 -> 131.064 | U87: 1 | V87: Net pay from Kosters et al., 1989 (Table 38) | AM87: 10 | AN87: 10 | AO87: 10 | AP87: 1 | AQ87: Values from Kosters et al., 1989 (Table 38)| Uncertainty 1=empirical related to formation 5=assigned from calc. | AT87: Kosters et al., 1989 (Table 38) | AX87: structural-stratigraphic (anticline and facies change) | BA87: oil and gas | BI87: 1977 | CC87: yes
A88: 24 | F88: Minden Field | G88: Rusk | H88: TX | I88: 32.10357912 | J88: -94.74313302 | K88: Average of Field from DrillingInfo | L88: 7372 | N88: Sandstone | Q88: Travis Peak Sandstone | T88: =15*0.3048 -> 4.572 | U88: 1 | V88: Net pay from Kosters et al., 1989 (Table 38) | AT88: Kosters et al., 1989 (Table 38) | AX88: struct-nose strat-facies change | BA88: gas and oil | BI88: 1953 | CC88: yes
A89: 61 | F89: Whelan Field | G89: Harrison | H89: TX | I89: 32.68928958 | J89: -94.59570864 | K89: Average of Field from DrillingInfo | L89: 7322 | N89: Sandstone | Q89: Travis Peak Sandstone | T89: =474*0.3048 -> 144.4752 | U89: 1 | V89: Net pay from Kosters et al., 1989 (Table 38) | AB89: md | AC89: 83 | AD89: 0.05 | AE89: =(AC89+AD89)/2 -> 41.525 | AF89: 5 | AG89: Mathematical mean of values from Kosters et al., 1989 (Table 38) | AM89: 13 | AN89: 13 | AO89: 13 | AP89: 1 | AQ89: Values from Kosters et al., 1989 (Table 38)| Uncertainty 1=empirical related to formation 5=assigned from calc. | AT89: Kosters et al., 1989 (Table 38) | AX89: struct- anticline-dome | AY89: Pressure Depletion | BA89: gas and oil | BI89: 1946 | BR89: 33 | BT89: values from Kosters et al., 1989 (Table 38) | CA89: =IF(F89=$CA$1,AD89," ") ->  | CB89: =IF(F89=$CB$1,AD89," ") ->  | CC89: yes | CD89: =IF(F89=$CC$1,AD89," ") -> 
A90: 77 | F90: Willow Springs Field | G90: Gregg | H90: TX | I90: 32.52132664 | J90: -94.78636421 | K90: Average of Field from DrillingInfo | L90: 7638 | N90: Sandstone | Q90: Travis Peak Sandstone | T90: =226*0.3048 -> 68.8848 | U90: 1 | V90: Net pay from Kosters et al., 1989 (Table 38) | AB90: md | AC90: 20 | AD90: 20 | AE90: 20 | AF90: 1 | AG90: Values from Kosters et al., 1989 (Table 38) | AM90: 13 | AN90: 13 | AO90: 13 | AP90: 1 | AQ90: Values from Kosters et al., 1989 (Table 38)| Uncertainty 1=empirical related to formation 5=assigned from calc. | AT90: Kosters et al., 1989 (Table 38) | AX90: struct-anticline | BA90: gas and oil | BI90: 1954 | CA90: =IF(F90=$CA$1,AD90," ") ->  | CB90: =IF(F90=$CB$1,AD90," ") ->  | CC90: yes | CD90: =IF(F90=$CC$1,AD90," ") -> 
A91: 23.1 | F91: Ezim Field | G91: Rusk | H91: TX | I91: 31.87080817 | J91: -94.88015664 | K91: Average of Field from DrillingInfo | L91: 8064 | M91: 8258 | N91: Sandstone | Q91: Travis Peak Sandstone | T91: =60*0.3048 -> 18.288 | U91: 1 | V91: Pay from Mize, 1989 | AB91: md | AT91: Mize, 1989 | AX91: stratigraphic | BA91: oil and gas | BI91: 1984 | BV91: 980 | BW91: 1 | BX91: BFHSIP Values from Mize, 1989 | BY91: 225 | BZ91: Farhenheit | CA91: 1 | CB91: Values from Mize, 1989 | CC91: yes-new | CD91: =IF(F91=$CC$1,AD91," ") -> 
A92: 83 | F92: model-1 | G92: 10 km area | H92: TX | M92: 8900 | N92: Sandstone | Q92: Travis Peak Sandstone | T92: 550 | U92: 1 | V92: Depth for model Maximum calc from RRC Formation tops | AB92: md | AC92: 200 | AD92: 80 | AE92: 90 | AF92: 1 | AG92: Depth for model Maximum calc from RRC Formation tops | AM92: 18 | AN92: 14 | AO92: 15 | AP92: 1 | AQ92: Depth for model Maximum calc from RRC Formation tops | BR92: 30 | BT92: Values given based on above values, yet in calculations for RPI and RFC the value has little impact. | BV92: 3000 | BW92: 1 | BX92: Average value from above | BY92: 206 | BZ92: Farhenheit | CA92: 1 | CB92: Average value from above | CC92: Maria
A93: 84 | F93: model-2 | G93: 10 km area | H93: TX | M93: 8900 | N93: Sandstone | Q93: Travis Peak Sandstone | T93: 382.9268293 | U93: 1 | V93: Depth for model Average calc from fluid injection well perforations - DrillingInfo spreadsheet | AB93: md | AC93: 90 | AD93: 50 | AE93: 65 | AF93: 1 | AG93: Depth for model Average calc from fluid injection well perforations - DrillingInfo spreadsheet | AM93: 15 | AN93: 10 | AO93: 13 | AP93: 1 | AQ93: Depth for model Average calc from fluid injection well perforations - DrillingInfo spreadsheet | BR93: 20 | BT93: Values given based on above values, yet in calculations for RPI and RFC the value has little impact. | BV93: 3000 | BW93: 1 | BX93: Average value from above | BY93: 200 | BZ93: Farhenheit | CA93: 1 | CB93: Average value from above | CC93: Maria
A94: 85 | F94: model-3 | G94: 10 km area | H94: TX | M94: 8900 | N94: Sandstone | Q94: Travis Peak Sandstone | T94: 200 | U94: 1 | V94: Depth for model Minimum calc from values above averaged for related formation hydrocarbon zone | AB94: md | AC94: 20 | AD94: 10 | AE94: 15 | AF94: 1 | AG94: Depth for model Minimum calc from values above averaged for related formation hydrocarbon zone | AM94: 10 | AN94: 7 | AO94: 8 | AP94: 1 | AQ94: Depth for model Minimum calc from values above averaged for related formation hydrocarbon zone | BR94: 10 | BT94: Values given based on above values, yet in calculations for RPI and RFC the value has little impact. | BV94: 3000 | BW94: 1 | BX94: Average value from above | BY94: 185 | BZ94: Farhenheit | CA94: 1 | CB94: Average value from above | CC94: Maria
A95: 86 | F95: model-4 | G95: 10 km area | H95: TX | M95: 11000 | N95: Sandstone | Q95: Cotton Valley Sandstone | T95: 450 | U95: 1 | V95: Depth for model Maximum calc from RRC Formation tops | AB95: md | AC95: 6 | AD95: 3 | AE95: 4 | AF95: 1 | AG95: Depth for model Maximum calc from RRC Formation tops | AM95: 12 | AN95: 12 | AO95: 12 | AP95: 1 | AQ95: Depth for model Maximum calc from RRC Formation tops | BR95: 30 | BT95: Values given based on above values, yet in calculations for RPI and RFC the value has little impact. | BV95: 3000 | BW95: 1 | BX95: Average value from above | BY95: 270 | BZ95: Farhenheit | CA95: 1 | CB95: Average value from above | CC95: Maria
A96: 87 | F96: model-5 | G96: 10 km area | H96: TX | M96: 11000 | N96: Sandstone | Q96: Cotton Valley Sandstone | T96: 120 | U96: 1 | V96: Depth for model Average calc from fluid injection well perforations - DrillingInfo spreadsheet | AB96: md | AC96: 4 | AD96: 0.2 | AE96: 0.3 | AF96: 1 | AG96: Depth for model Average calc from fluid injection well perforations - DrillingInfo spreadsheet | AM96: 8 | AN96: 6 | AO96: 7 | AP96: 1 | AQ96: Depth for model Average calc from fluid injection well perforations - DrillingInfo spreadsheet | BR96: 20 | BT96: Values given based on above values, yet in calculations for RPI and RFC the value has little impact. | BV96: 3000 | BW96: 1 | BX96: Average value from above | BY96: 260 | BZ96: Farhenheit | CA96: 1 | CB96: Average value from above | CC96: Maria
A97: 88 | F97: model-6 | G97: 10 km area | H97: TX | M97: 11000 | N97: Sandstone | Q97: Cotton Valley Sandstone | T97: 25 | U97: 1 | V97: Depth for model Minimum calc from values above averaged for related formation hydrocarbon zone | AB97: md | AC97: 0.01 | AD97: 0.01 | AE97: 0.01 | AF97: 1 | AG97: Depth for model Minimum calc from values above averaged for related formation hydrocarbon zone | AM97: 2 | AN97: 1 | AO97: 2 | AP97: 1 | AQ97: Depth for model Minimum calc from values above averaged for related formation hydrocarbon zone | BR97: 10 | BT97: Values given based on above values, yet in calculations for RPI and RFC the value has little impact. | BV97: 3000 | BW97: 1 | BX97: Average value from above | BY97: 245 | BZ97: Farhenheit | CA97: 1 | CB97: Average value from above | CC97: Maria
A98: 89 | F98: model-7 | G98: 10 km area | H98: TX | M98: 6000 | N98: Sandstone | Q98: Pettet Limestone | T98: 100 | U98: 1 | V98: Depth for model Maximum calc from RRC Formation tops | AB98: md | AC98: 1000 | AD98: 750 | AE98: 900 | AF98: 1 | AG98: Depth for model Maximum calc from RRC Formation tops | AM98: 23 | AN98: 20 | AO98: 21 | AP98: 1 | AQ98: Depth for model Maximum calc from RRC Formation tops | BR98: 30 | BT98: Values given based on above values, yet in calculations for RPI and RFC the value has little impact. | BV98: 3000 | BW98: 1 | BX98: Average value from above | BY98: 230 | BZ98: Farhenheit | CA98: 1 | CB98: Average value from above | CC98: Maria
A99: 90 | F99: model-8 | G99: 10 km area | H99: TX | M99: 6000 | N99: Sandstone | Q99: Pettet Limestone | T99: 38 | U99: 1 | V99: Depth for model Average calc from fluid injection well perforations - DrillingInfo spreadsheet | AB99: md | AC99: 200 | AD99: 75 | AE99: 110 | AF99: 1 | AG99: Depth for model Average calc from fluid injection well perforations - DrillingInfo spreadsheet | AM99: 17 | AN99: 12 | AO99: 14 | AP99: 1 | AQ99: Depth for model Average calc from fluid injection well perforations - DrillingInfo spreadsheet | BR99: 20 | BT99: Values given based on above values, yet in calculations for RPI and RFC the value has little impact. | BV99: 3000 | BW99: 1 | BX99: Average value from above | BY99: 222 | BZ99: Farhenheit | CA99: 1 | CB99: Average value from above | CC99: Maria
A100: 91 | F100: model-9 | G100: 10 km area | H100: TX | M100: 6000 | N100: Sandstone | Q100: Pettet Limestone | T100: 2 | U100: 1 | V100: Depth for model Minimum calc from values above averaged for related formation hydrocarbon zone | AB100: md | AC100: 10 | AD100: 3 | AE100: 4 | AF100: 1 | AG100: Depth for model Minimum calc from values above averaged for related formation hydrocarbon zone | AM100: 12 | AN100: 10 | AO100: 11 | AP100: 1 | AQ100: Depth for model Minimum calc from values above averaged for related formation hydrocarbon zone | BR100: 10 | BT100: Values given based on above values, yet in calculations for RPI and RFC the value has little impact. | BV100: 3000 | BW100: 1 | BX100: Average value from above | BY100: 210 | BZ100: Farhenheit | CA100: 1 | CB100: Average value from above | CC100: Maria

Sheet Metadata
B1: Metadata
A2: Title of dataset
A3: Description of dataset
A4: Author name
A5: Author role
A6: Author organization affiliation name
A7: Author e-mail address
A8: Author telephone number
A9: Author postal Address
A10: Source citation
A11: SourceMetadataURI
A12: Distributor person name
A13: Distributor position name
A14: Distributor organization affiliation name
A15: Distributor e-mail address
A16: Distributor telephone number
A17: Contact person name | B17: Joseph Batir
A18: Contact position name
A19: Contact organization affiliation name | B19: SMU Geothermal Laboratory
A20: Contact e-mail address | B20: jbatir@smu.edu
A21: Contact telephone number
A22: Contact postal Address
A23: Use Constraints
A24: Notes on conventions used in this dataset
A25: DataEntrySource

Sheet FieldList
A1: Field List | H1: Please follow directions in this column and element description column to fill in data in the data sheet. First look in this column, and if there is no information or it is unclear, then follow the element description information to fill in cell
A2: Interchange Content Element | B2: Data Type | C2: Implementation | D2: Cardinality | E2: Element Description | F2: Domain | G2: Example(s) | H2: Notes for Shar and Harrison Pertaining to the E. Texas Project
A3: OBJECTID | B3: int | C3: int | D3: 1 | E3: Added by GIS software. | H3: This column is not in the spreadsheet, but added in when imported into ArcGIS - do not worry about it not being there, start with worker name
A4: Worker Name | B4: free text | C4: string | D4: 1 | E4: Name of work inputing information into this content model | H4: Put your name - the person adding in the data
A5: ObservationURI | B5: URI | C5: string 255 | D5: 1 | E5: Unique identifier for this observation. This is the identifier (Uniform Resource Identifier) that will be used to cross-reference data, samples, and other observations to the observation represented by this record. Best practice is to define an http URI that will dereference to a normative description of the observation. USGIN URI's may be redirected to any URL using the http://resources.usgin.org redirector; contact the USGIN development team at AZGS for instructions. | H5: Field will be hidden - this will be filled in later
A6: ObservationName | B6: free text | C6: string | D6: 1 | E6: The human-intelligible name for the observation; may be a concatenation of observation type and feature name.
A7: WellType | B7: term | C7: string | D7: 1 | E7: Type of well that contains the borehole identified by the HeaderURI, at the time indicated in the StatusDate element. | G7: AB (Plugged and Abandoned); AI (Air injection); BM (Brine Mining); CM (Coal bed methane); CO (CO2 injection); DH (Drill hole); DI (Disposal); DW (Domestic Well); EOR (Enhanced oil recovery); EX (Exploration); GAS (Gas) | H7: Field will be hidden - this will be filled in later
A8: HeaderURI | B8: URI | C8: string 255 | D8: 1 | E8: Unique identifier for the borehole indicated by this record. This identifier should identify the physical well, based on the API number if available. Otherwise, the URI should incorporate one of the OtherID values. Please contact the USGIN development team at AZGS for instructions. | H8: INPUT THE API INTO THIS COLUMN IF DATA IS FROM A WELL
A9: WellName | B9: string | C9: free text | D9: 0..1 | E9: Common or human-readable name by which the feature is known. Recommend using only web-safe characters (a-z A-Z 0-9 _-.) in the name. Be consistent in the naming convention used within any given dataset. | H9: Field will be hidden - this will be filled in later
A10: OtherID | B10: string | C10: free text | D10: 0..1 | E10: Alternative identifier(s) for the feature. Indicate the authority from which the OtherID is derived with a short (lower case) prefix delimited by a colon ':' If identifiers from multiple different authorities are available, delimit these identifiers with the pipe '|' character. For example, if a well were known to the Arizona Geological Survey (AZGS) by the id number 1337, the prefix would be azgs: and the identifier string would be azgs:1337. Any such prefixes used to scope identifiers should be explained in the dataset metadata. | H10: IF DATA IS FROM A FIELD, INPUT FIELD NAME HERE
A11: County | B11: free text | C11: string | D11: 1 | E11: Required. County name. If unknown or not applicable use 'missing'. If offshore, specify 'offshore' in this field. | H11: If data is well data - leave blank If data is from any other source, please fill in
A12: State | B12: free text | C12: string | D12: 1 | E12: Required. State name without abbreviations. If unknown or not applicable use 'missing'. For offshore locations, specify the governing or nearest state and list the county as 'offshore'. | H12: This field will be hidden
A13: LatDegree | B13: decimal | C13: double | D13: 1 | E13: Latitude coordinate for the surface location of the feature (use center point for areas); values should be provided with at least 4 significant digits for sufficient precision (7 decimal places is recommended by the USGS (OFR 02-463, p. 6). Use decimal degrees. | H13: If well - leave blank If field average data - pick the center of the field as the location and input that here if other data, should have an associated lat/long
A14: LongDegree | B14: decimal | C14: double | D14: 1 | E14: Longitude coordinate for the surface location of the feature (use center point for areas); values should be provided with at least 4 significant digits for sufficient precision (7 decimal places is recommended by the USGS (OFR 02-463, p. 6). Use decimal degrees. | H14: If well - leave blank If field average data - pick the center of the field as the location and input that here if other data, should have an associated lat/long
A15: LocationUncertaintyStatement | B15: free text | C15: string | D15: 1 | E15: Information on how the original location was determined, e.g., 1:250,000 map, gps unit, Google Earth, PLSS Conversion, Spatial Datum Conversion, e.g., NAD27 to WGS84. | H15: State location information source (map, google earth, well header, etc.) and give type of same (rock outcrop, well, field average, etc.)
A16: DepthTopInterval_ft | B16: decimal | C16: double | D16: 1 | E16: Depth to the top of the interval, reported in feet from borehole origin.
A17: DepthBottomInterval_ft | B17: decimal | C17: double | D17: 1 | E17: Depth to the bottom of the interval, reported in feet from borehole origin.
A18: RockType | B18: free text | C18: string | D18: 1 | E18: Free text name for lithology category of sample, e.g. biotite-hornblende granite, lithofeldspathic sandstone, calcareous arkose, biotite schist.
A19: Lithology | B19: free text | C19: string | D19: 0..1 | E19: Description of the lithology of surface geology or geologic column for well interval, e.g. granite, sandstone, limestone, arkose, schist. Recommend using CGI simple lithology vocabulary (see tab in this workbook). Use to account for EarthChem Material, EarthChem Type, EarthChem Composition, alluvium, 36-40': gravels; etc. | H19: Here, use the Simple Lithology from SimpleLithology2012. This is the lithology of interest, i.e. sandstone, limestone, shale, etc. This should be the dominant lithology of the reservoir of Interest
A20: OtherLithologyName | B20: free text | C20: string | D20: 0..1 | E20: Other rock types that are constituents of the reservoir; separate names with pipe ('|') character. | H20: Other rock types that are constituents of the reservoir that are not the dominant lithology of interest; separate names with pipe ('|') character.
A21: GeologicUnitName | B21: free text | C21: string | D21: 1 | E21: Name of geologic unit that was sampled. Include hierarchy of names if the unit is part of a higher-rank geologic unit, e.g. Group name/Formation name, or Formation/Member, or Group/ Formation. Spell out unit names in full. | H21: Here, input the reservoir of interest - i.e. Cotton Valley, Travis Peak, etc.
A22: OtherFormationName | B22: free text | C22: string | D22: 0..1 | E22: Other named geologic units that are of interest to the study; separate names with pipe ('|') character. | H22: If reservoir has multiple producing layers that are named in the literature, separate those layers out here - Example - Cotton Valley group has other layers that are not just the Cotton Valley, list those here if they are mentioned in the report you are writing about
A23: PercentTargetRock | B23: decimal | C23: double | D23: 0..1 | E23: Target Rock (Sand, shale, etc.) volume divided by block volume. | H23: Fill in for both wells and fields
A24: AverageNetTargetRockThickness_m | B24: decimal | C24: double | D24: 0..1 | E24: Average net target rock thickness within the reservoir/fairway boundaries identified as calculated from well log interpretation. Describe method and uncertainty in appropriate fields. | H24: For wells - leave blank and we will calculate from the well logs. For fields - if this data is available record it
A25: AverageNetTargetRockThicknessUncertainty | B25: free text | C25: string | D25: 0..1 | E25: An expression of the confidence in the AverageNetTargetRockThickness value. Best practice to include units and assumptions for calculating uncertainty within AverageReservoirDepthMethodology. | H25: For wells - leave blank for now For fields - there should be a ± measurement for thickness, use this
A26: AverageNetTargetRockThicknessMethodology | B26: free text | C26: string | D26: 0..1 | E26: The method for well log interpretation in calculating AverageNetTargetRockThickness_m is stated here. Required if AverageNetTargetRockThickness_m is provided. Also include units and explanation for AverageNetTargetRockThicknessUncertainty value. | H26: Please input if the net target rock thickness is labeled at net sand thickness / net pay / reservoir thickness / etc.
A27: VerticalConductivity_ft_day | B27: decimal | C27: double | D27: 0..1 | E27: Physical property that quantitatively describes the ability of a fluid to move vertically through the pore spaces and/or fractures in a material. Report Conductivity values in ft/day.
A28: HorizontalConductivity_ft_day | B28: decimal | C28: double | D28: 0..1 | E28: Physical property that quantitatively describes the ability of a fluid to move horizontally through the pore spaces and/or fractures in a material. Report Conductivity values in ft/day.
A29: SpecificStorage | B29: decimal | C29: double | D29: 0..1 | E29: The volume of water an aquifer releases from or takes into storage per unit surface area of the aquifer per unit change in head.
A30: UnitsStorage | B30: string | C30: free text | D30: 0..1 | E30: Units for the reported specific storage. (1/[length]).
A31: Permeability | B31: decimal | C31: double | D31: 0..1 | E31: The property or capacity of a porous rock, sediment, or soil for transmitting a fluid; it is a measure of the relative ease of fluid flow under unequal pressure.
A32: UnitsPermeability | B32: free text | C32: string | D32: 0..1 | E32: Units for the reported permability. The SI unit for permeability is m^2. A practical unit for permeability is the darcy (D), or more commonly the millidarcy (mD) (1 darcy \approx10−12/m^2).
A33: PermeabilityMax_m2 | B33: decimal | C33: double | D33: 0..1 | E33: Maximum permeability based on Literature values for the field or calculated permeability using production tests. Units square meters (m2). | H33: If only average Permeability is available for the field, put that in for Max, Min, and Avg
A34: PermeabilityMin_m2 | B34: decimal | C34: double | D34: 0..1 | E34: Minimum permeability based on Literature values for the field or calculated permeability using production tests. Units square meters (m2).
A35: PermeabilityAverage_m2 | B35: decimal | C35: double | D35: 0..1 | E35: The Average Permeability available from public data sources. The method for calculating an average should be stated in PermeabilityAverageMethod. Where only one permeability value is obtained from public data sources, the minimum, maximum, and average will be identical.
A36: PermeabilityAverageUncertainty | B36: free text | C36: string | D36: 0..1 | E36: An expression of the confidence in the PermeabilityAverage_m2 value. Best practice to include units and assumptions for calculating uncertainty within PermeabilityAverageMethod.
A37: PermeabilityAverageMethod | B37: free text | C37: string | D37: 0..1 | E37: The method for calculating PermeabilityAverage_m2 is stated here. Required if PermeabilityAverage_m2 is provided. Also provide units and explanation for calculating PermeabilityAverageUncertainty. | G37: Examples include: Based upon a single published value, with a stated reference. Weighted average of permeability values for stratigraphic column to depth, with source of stratigraphic column. Mean average of x number of permeability values from published sources. Example of PermeabilityAverageUncertainty would include units (such as co-efficient of variation, or a letter or number scale) along with an explanation or link to more detail.
A38: SpecificYield_percent | B38: decimal | C38: double | D38: 0..1 | E38: The ratio of the volume of water that a given mass of saturated rock or soil will yield by gravity to the volume of that mass.
A39: Transmissivity | B39: decimal | C39: double | D39: 0..1 | E39: The transmissivity is a measure of how much water can be transmitted horizontally, such as to a pumping well. Transmissivity is directly proportional to horizontal hydraulic conductivity and thickness of the transmitting layer.
A40: Transmissivity_units | B40: free text | C40: string | D40: 0..1 | E40: Units are (length)^2/Time.
A41: EffectivePorosity | B41: decimal | C41: double | D41: 0..1 | E41: The percentage of pore volume or void space, or that volume within rock that can contain fluids.
A42: Porosity | B42: decimal | C42: double | D42: 0..1 | E42: Porosity values obtained from public data sources | H42: Fill this in when there is not an effective porosity listed for the source
A43: PorosityMax_pct | B43: decimal | C43: double | D43: 0..1 | E43: Maximum porosity values obtained from public data sources. | H43: If only the average porosity for the field is available, put that in Max, Min, and Avg
A44: PorosityMin_pct | B44: decimal | C44: double | D44: 0..1 | E44: Minimum porosity values obtained from public data sources.
A45: PorosityAverage_pct | B45: decimal | C45: double | D45: 0..1 | E45: The Average Porosity available from public data sources. The method for calculating an average should be stated in PorosityAverageMethod. Where only one porosity value is obtained from public data sources, the minimum, maximum, and average will be identical.
A46: PorosityAverageUncertainty | B46: free text | C46: string | D46: 0..1 | E46: An expression of the confidence in the PorosityAverage_pct value. Best practice to include units and assumptions for calculating uncertainty within PorosityAverageMethod.
A47: PorosityAverageMethod | B47: free text | C47: string | D47: 0..1 | E47: The method for calculating PorosityAverage_pct is stated here. Required if PorosityAverage_pct is provided. Also include units and explanation for PorosityAverageUncertainty value. | G47: Examples include: Based upon a single published value, with a stated reference. Weighted average of porosity values for stratigraphic column to depth, with source of stratigraphic column. Mean average of x number of porosity values from published sources.
A48: ObservationMethod | B48: free text | C48: string | D48: 1 | E48: Text description of how the measurement was made - instrumentation, logging rate, correction or extrapolation process, how time since circulation was determined, etc. Data provider should indicate QA/QC performed on the data, including individual or institution, time frame and depth of quality check.
A49: RelatedResource | B49: free text | C49: string | D49: 0..1 | E49: This may be one to many http links to resources (logs, pictures or other documents if available online. Should be an http:// address (URL)) related to the observation described in each record. Delimit multiple values with the pipe '|' character. | H49: These links will have to be public access links at some point - if you have links to public access documents, use those All references should be uploaded into Box- if there is no public access link then you can use the URL to the box location for now. For any wells - include a link to the RRC website that gives details for the specific well
A50: Source | B50: free text | C50: string | D50: 1 | E50: Mandatory. Short text explanation of source of information defining this feature or record; may be author-date type citation, well log, report, data files etc., but should include some indication of how digital data originated. If unpublished data, provide researcher name, date and research institution for proper citation. Separate multiple citations with pipe '|' character. | H50: Add reference information in parenthetical citation form. i.e. Koster et al., 1989 | Blackwell and Richards, 2004 | etc. If newly interpreted by worker - add worker name, data source (i.e. well log), and date
A51: MetadataURI | B51: URI | C51: string255 | D51: 0..1 | E51: URI identifying (and ideally dereferencing to get) a full formal metadata record for the observation report. A time series of observations may all reference the same metadata record that provides contact information and details on procedure, etc. | H51: THIS CELL WILL BE HIDDEN
A52: Shape | B52: gml:PointPropertyType | C52: gml:PointPropertyType | D52: 1 | E52: Managed by GIS and web feature server; generated from point lat, long, srs | H52: THIS CELL WILL BE HIDDEN
A53: CementationMineralogy | B53: free text | C53: string | D53: 0..1 | E53: Calcite, Quartz, Iron Oxides, Clay Minerals, etc.
A54: Trap | B54: free text | C54: string | D54: 0..1 | E54: Sealing formation or structural orientation to trap hydrocarbons.
A55: Drive | B55: free text | C55: string | D55: 0..1 | E55: Geopressure, dissolved gas drive, thermal expansion, etc.
A56: WaterDensity_mgL | B56: decimal | C56: double | D56: 0..1 | E56: Indicate the water (or brine, likely) TDS (total dissolved solids). Unit of measure is mg/L. | H56: This is a measure of the water density if available - you should have already filled out TDS in WaterTDS_mgl
A57: CommodityOfInterest | B57: free text | C57: string | D57: 0..1 | E57: The commodity of interest associated with the borehole. | G57: Coalbed Methane; Oil; OilAndGas (Mixtures of oil and combustible natural gas.); Gas (Combustible natural gas); GeothermalEnergy (fluid extracted from subsurface as medium for transporting heat from subsurface heat reservoir for use by people.); Helium; CarbonDioxide; OtherGas (Not sure if there are any other gases produced from subsurface…); Sulfur; Water, fresh; Brine; MetallicMinerals (base and precious metals); Salt (sodium chlorite); OtherEvaporite (borates, other salts.); OtherSolidMineral (Barite, anhydrite, zeolites, clay minerals, aggregate, etc.); Information (well was drilled for monitoring, making measurements, acquiring stratigraphic information, etc.. Not specific to any particular commodity exploration or development.); Uranium (Uranium or thorium minerals); radioactive fluid (For disposal of radioactive material; assume nothing else really matters in this case…); Salt water (have to distinguish from brine); brackish water; air; LPG (Liquified Petroleum Gas); CO2; other; unknown
A58: Stimulation | B58: free text | C58: string | D58: 0..1 | E58: A treatment performed to restore or enhance the productivity of a well. | G58: Acid Frac, Thermal Frac, Standard Frac, etc.
A59: AveragePerforatedThickness_m | B59: decimal | C59: double | D59: 0..1 | E59: Average perforated thickness per well across field. | H59: Here, make sure you are looking at the perforated thickness within the formation of interest
A60: WellCount | B60: integer | C60: double | D60: 0..1 | E60: Number of wells contained by reservoir in question. If AverageReservoirDepth_m is based on an average of well depths, especially important to provide the WellCount. | H60: Record the number of wells within the given field If you are adding information from an individual well, leave blank
A61: FaultCount | B61: integer | C61: double | D61: 0..1 | E61: Number of faults contained by field in question. | H61: Only fill in for field derived values
A62: Faulted | B62: free text | C62: string | D62: 0..1 | E62: Indicate if the reservoir was bounded, or limited in size, by vertical faults. 'Yes' or 'No' may be appropriate indications. | H62: Only fill in for field derived values
A63: FaultType | B63: free text | C63: string | D63: 0..1 | E63: Indicate general type of fault: Growth, Normal, Thrust. | H63: Only fill in for field derived values
A64: FaultHydraulicCharacter | B64: free text | C64: string | D64: 0..1 | E64: Provide insight into whether there is fluid flow from greater depths along faults or if they are creating a trap/seal. | H64: Only fill in for field derived values
A65: FirstProductionDate | B65: calendarDate | C65: dateTime | D65: 0..1 | E65: Date for the record (of first production). Day, month and year must be specified; Excel will display using ISO 8601 date and time (yyyy-mm-ddT:hh:mm) format. If only the year is known, enter month and day as 'Jan. 1', (or '1/1/', or '1-1-', or 'January 1,'). All dates will be converted to yyyy-mm-ddThh:mm. | H65: Only fill in for field derived values
A66: LastProductionDate | B66: calendarDate | C66: dateTime | D66: 0..1 | E66: Date for the record (of last production). Day, month and year must be specified; Excel will display using ISO 8601 date and time (yyyy-mm-ddT:hh:mm) format. If only the year is known, enter month and day as 'Jan. 1', (or '1/1/', or '1-1-', or 'January 1,'). All dates will be converted to yyyy-mm-ddThh:mm. | H66: Only fill in for field derived values
A67: YearsInProduction | B67: integer | C67: double | D67: 0..1 | E67: Number of years of active production. | H67: Only fill in for field derived values
A68: MonthlyProduction_bbl | B68: decimal | C68: double | D68: 0..1 | E68: Used to estimate current pressure and most recent production history across the field. | H68: Only fill in for field derived values
A69: ProductionReportDate | B69: calendarDate | C69: dateTime | D69: 0..1 | E69: Date for monthly production value. Day, month and year must be specified; Excel will display using ISO 8601 date and time (yyyy-mm-ddT:hh:mm) format. If only the year is known, enter month and day as 'Jan. 1', (or '1/1/', or '1-1-', or 'January 1,'). All dates will be converted to yyyy-mm-ddThh:mm. | H69: Only fill in for field derived values
A70: AverageMonthlyWaterProduction_bbl | B70: decimal | C70: double | D70: 0..1 | E70: Average monthly water production for every well in the field. | H70: Only fill in for field derived values
A71: MinimumMonthlyWaterProduction_bbl | B71: decimal | C71: double | D71: 0..1 | E71: Minimum monthly water production from a well in the field. | H71: Only fill in for field derived values
A72: MaximumMonthlyWaterProduction_bbl | B72: decimal | C72: double | D72: 0..1 | E72: Maximum monthly water production from a well in the field. | H72: Only fill in for field derived values
A73: WaterInjection_bbl | B73: decimal | C73: double | D73: 0..1 | E73: Amount of water injected into a formation for disposal purposes or enhanced recovery. | H73: Only fill in for field derived values
A74: WaterSaturation_pct | B74: decimal | C74: double | D74: 0..1 | E74: Water Saturation(%).
A75: WaterTDS_mgl | B75: decimal | C75: double | D75: 0..1 | E75: Total Dissolved Solids. Milligrams per liter.
A76: AverageInitialPressure | B76: decimal | C76: double
A77: AverageInitialPressure_Uncertainty | B77: free text | C77: string | D77: 1
A78: AverageInitialPressure_Methodology | B78: free text | C78: string | D78: 1
A79: AverageBHT | B79: decimal | C79: double | D79: 0..1 | E79: Average Bottom Hole Temperature
A80: BHT units | B80: free text | C80: string | D80: 1 | E80: Bottom Hole Temperature units
A81: AverageBHT_Uncertainty | B81: free text | C81: string | D81: 1 | E81: Uncertainty for BHT based on 1 = actual published value & 5 = value calculated from values
A82: AverageBHT_Methodology | B82: free text | C82: string | D82: 1

Sheet About
A1: HydraulicProperty | B1: typeLayerName; note this cell has a DefinedName that is the same as the worksheet tab containing the data for this feature type
A2: usgincm:Hydraulic Properties | B2: usginKeyword
A3: Data | B3: dataTab
B4: AASG Geothermal Data: Hydraulic Property observations
A5: Version | B5: 1.1
A6: Workbook Description | B6: This workbook is an aid for compiling data for delivery as hydraulic property observations for the National Geothermal Data System. The HydraulicPropertyObservation worksheet specifies content elements for an interchange format for data obtained from boreholes. Fields in that spreadsheet will become XML elements in interchange documents for WFS simple features/geothermal data web services. Typically hydraulic properties are collected during pump testing and/or laboratory analysis, and this information will be provided through a hydraulic property observation service. The HeaderURI for a particular borehole (well for simple wells) is the cross-referencing link (foreign key) used to associate the header record, well logs, temperature measurements, and other information from a particular borehole.
A7: Feature Description | B7: Hydraulic conductivity, symbolically represented as K, is a property of vascular plants, soil or rock, that describes the ease with which water can move through pore spaces or fractures. It depends on the intrinsic permeability of the material and on the degree of saturation. Saturated hydraulic conductivity, Ksat, describes water movement through saturated media.
A8: Editors | B8: AZGS: Diane Love, Esty Pape, Stephen Richard, Celia Coleman, Christy Caudill
A11: Revision | B11: Comment | C11: Person | D11: Date
A12: 0.1 | B12: Initial draft started by copying Wisconsin data and Borehole Lithology Intervals features and deleting unrelated fields | C12: Diane Love | D12: 2011-09-20
A13: 0.2 | B13: Added Data Revision History section (below). Updated and renamed Dataset Metadata tab. Added Review Comments tab, Field List tab. Revised field headings to be consistent with WellLog content model. | C13: Esty Pape | D13: 2012-06-18
B14: Quick look. Need to get unit abbrev in observed value field names, be consistent about SI or English units. Change sheet name. | C14: Stephen Richard | D14: 2012-09-10
A15: 1 | B15: Added a field list, updated text | C15: Celia Coleman | D15: 2012-10-23
A16: 1.0.1 | B16: Standardized Field Descriptions on FieldList for xsd and xml; deleted DataValidTerms tab. | C16: Esty Pape | D16: 2013-08-14
A17: 1.0.1 | B17: Massive formatting changes to template. | C17: Christy Caudill | D17: 2013-08-29
A18: 1.1 | B18: changed LatDegreeWGS84 and LongDegreeWGS84 to "LatDegree" and "LongDegree" | C18: Laura Bookman | D18: 2015-06-22
B19: Added SimpleLithology2012 tab with Simple Lithology information, added new columns highlighted light yellow that are similar to Geologic Reservoir content model for easy cross exchange between content models | C19: Joseph Batir | D19: 2018-02-02
B20: Added AverageInitialPressure_psi, AverageInitialPressure_Uncertainty, AverageInitialPressure_Methodology, AverageBHT_°F, AverageBHT_Uncertainty, and AverageBHT_Methodology columns | C20: Harrison Schumann | D20: 2018-04-25
A21: to do! | B21: add columns for units - perm, production, temp | C21: Maria
A25: Tab Descriptions
A26: About | B26: Contains versioning and revision history.
A27: Metadata | B27: Contains information for contact person an/or entity providing the information in this spreadsheet workbook.
A28: Data | B28: Contains fields for information used to discover feature or observation of interest.
A29: FieldList | B29: Contains a data mapping for interchange formats, cardinality, formatting information and instructions for populating the content model.
A30: DataRevisions: | B30: Location to provide feedback for data providers to implement necessary edits to the data to conform to schema conventions, but is also meant to serve as a revision history for the data.
B33: This work is licensed under a Creative Commons Attribution 3.0 Unported License.
B34: Copyright © Arizona Geological Survey, 2012

Sheet SimpleLithology2012
A1: URI | B1: prefLabel | C1: Definition | D1: Source
A2: http://resource.geosciml.org/classifier/cgi/lithology/acidic_igneous_material | B2: Acidic igneous material | C2: Igneous material with more than 63 percent SiO2. | D2: after LeMaitre et al. 2002
A3: http://resource.geosciml.org/classifier/cgi/lithology/acidic_igneous_rock | B3: Acidic igneous rock | C3: Igneous rock with more than 63 percent SiO2. | D3: after LeMaitre et al. 2002
A4: http://resource.geosciml.org/classifier/cgi/lithology/alkali-olivine_basalt | B4: Alkali olivine basalt | C4: Alkali olivine basalt is silica-undersaturated, characterized by the absence of orthopyroxene, absence of quartz, presence of olivine, and typically contains some feldspathoid mineral, alkali feldspar or phlogopite in the groundmass. Feldspar phenocrysts typically are labradorite to andesine in composition. Augite is rich in titanium compared to augite in tholeiitic basalt. Alkali olivine basalt is relatively rich in sodium. | D4: http://en.wikipedia.org/wiki/Basalt, Carmichael, I.S. Turner, F.J., Verhoogen, John, 1974, Igneous petrology: New York, McGraw HIll Book Co., p.42-43.
A5: http://resource.geosciml.org/classifier/cgi/lithology/alkali_feldspar_granite | B5: Alkali feldspar granite | C5: Granitic rock that has a plagioclase to total feldspar ratio less than 0.1. QAPF field 2. | D5: LeMaitre et al. 2002
A6: http://resource.geosciml.org/classifier/cgi/lithology/alkali_feldspar_rhyolite | B6: Alkali feldspar rhyolite | C6: Rhyolitoid in which the ratio of plagioclase to total feldspar is less than 0.1. QAPF field 2. | D6: LeMaitre et al. 2002
A7: http://resource.geosciml.org/classifier/cgi/lithology/alkali_feldspar_syenite | B7: Alkali feldspar syenite | C7: Alkali feldspar syenitic rock that contains 0-5 percent quartz and no feldspathoid in the QAPF fraction. QAPF field 6. | D7: LeMaitre et al. 2002
A8: http://resource.geosciml.org/classifier/cgi/lithology/alkali_feldspar_syenitic_rock | B8: Alkali feldspar syenitic rock | C8: Syenitoid with a plagioclase to total feldspar ratio of less than 0.1. QAPF fields 6, 6*, and 6'. | D8: LeMaitre et al. 2002
A9: http://resource.geosciml.org/classifier/cgi/lithology/alkali_feldspar_trachyte | B9: Alkali feldspar trachyte | C9: Trachytoid that has a plagioclase to total feldspar ratio less than 0.1, between 0 and 5 percent quartz in the QAPF fraction, and no feldspathoid minerals. QAPF field 6. | D9: LeMaitre et al. 2002
A10: http://resource.geosciml.org/classifier/cgi/lithology/alkali_feldspar_trachytic_rock | B10: Alkali feldspar trachytic rock | C10: Trachytoid that has a plagioclase to total feldspar ratio less than 0.1. QAPF fields 6, 6', and 6*. | D10: LeMaitre et al. 2002
A11: http://resource.geosciml.org/classifier/cgi/lithology/amphibolite | B11: Amphibolite | C11: Metamorphic rock mainly consisting of green, brown or black amphibole and plagioclase (including albite), which combined form 75 percent or more of the rock, and both of which are present as major constituents. The amphibole constitutes 50 percent or more of the total mafic constituents and is present in an amount of 30 percent or more, other common minerals include quartz, clinopyroxene, garnet, epidote-group minerals, biotite, titanite and scapolite. | D11: Coutinho et al. 2007, IUGS SCMR chapter 8 (http://www.bgs.ac.uk/SCMR/)
A12: http://resource.geosciml.org/classifier/cgi/lithology/andesite | B12: Andesite | C12: Fine-grained igneous rock with less than 20 percent quartz and less than 10 percent feldspathoid minerals in the QAPF fraction, in which the ratio of plagioclase to total feldspar is greater 0.65. Includes rocks defined modally in QAPF fields 9 and 10 or chemically in TAS field O2 as andesite. Basalt and andesite, which share the same QAPF fields, are distinguished chemically based on silica content, with basalt defined to contain less than 52 weight percent silica. If chemical data are not available, the color index is used to distinguish the categories, with basalt defined to contain greater than 35 percent mafic minerals by volume or greater than 40 percent mafic minerals by weight. Typically consists of plagioclase (frequently zoned from labradorite to oligoclase), pyroxenehornblende and/or biotite. Fine grained equivalent of dioritic rock. | D12: after LeMaitre et al. 2002
A13: http://resource.geosciml.org/classifier/cgi/lithology/anorthosite | B13: Anorthosite | C13: Anorthositic rock that contains between 0 and 5 percent quartz and no feldspathoid mineral in the QAPF fraction. QAPF field 10. | D13: LeMaitre et al. 2002
A14: http://resource.geosciml.org/classifier/cgi/lithology/anorthositic_rock | B14: Anorthositic rock | C14: Leucocratic phaneritic crystalline igneous rock consisting essentially of plagioclase, often with small amounts of pyroxene. By definition, colour index M is less than 10, and plagiclase to total feldspar ratio is greater than 0.9. Less than 20 percent quartz and less than 10 percent feldspathoid in the QAPF fraction. QAPF field 10, 10*, and 10'. | D14: LeMaitre et al. 2002, This vocabulary
A15: http://resource.geosciml.org/classifier/cgi/lithology/anthracite_coal | B15: Anthracite | C15: Coal that has vitrinite mean random reflectance greater than 2.0% (determined in conformance with ISO 7404-5). Less than 12-14 percent volatiles (dry, ash free), greater than 91 percent fixed carbon (dry, ash free basis). The highest rank coal, very hard, glossy, black, with semimetallic luster, semi conchoidal fracture. | D15: Economic Commission for Europe, Committee on Sustainable Energy- United Nations (ECE-UN), 1998, International Classification of in-Seam Coals: Energy 19, 41 pp, see also Neuendorf et al. 2005, http://en.wikipedia.org/wiki/Coal#Types_of_coal, Eberhard Lindner, Chemie für Ingenieure, Lindner Verlag Karlsruhe, S. 258
A16: http://resource.geosciml.org/classifier/cgi/lithology/anthropogenic_material | B16: Anthropogenic material | C16: Material known to have artificial (human-related) origin, insufficient information to classify in more detail. | D16: This vocabulary
A17: http://resource.geosciml.org/classifier/cgi/lithology/anthropogenic_unconsolidated_material | B17: Anthropogenic unconsolidated material | C17: Unconsolidated material known to have artificial (human-related) origin. | D17: This vocabulary
A18: http://resource.geosciml.org/classifier/cgi/lithology/aphanite | B18: Aphanite | C18: Rock that is too fine grained to categorize in more detail. | D18: This vocabulary
A19: http://resource.geosciml.org/classifier/cgi/lithology/aplite | B19: Aplite | C19: Light coloured crystalline rock, characterized by a fine grained allotriomorphic-granular (aplitic, saccharoidal or xenomorphic) texture, typically granitic composition, consisting of quartz, alkali feldspar and sodic plagioclase. | D19: Neuendorf et al. 2005
A20: http://resource.geosciml.org/classifier/cgi/lithology/arenite | B20: Arenite | C20: Clastic sandstone that contains less than 10 percent matrix. Matrix is mud-size silicate minerals (clay, feldspar, quartz, rock fragments, and alteration products) of detrital or diagenetic nature. | D20: Pettijohn, Potter, Siever, 1972, Sand and Sandstone: New York, Springer Verlag, 681 p.
A21: http://resource.geosciml.org/classifier/cgi/lithology/ash_and_lapilli | B21: Ash and lapilli | C21: Tephra in which less than 25 percent of fragments are greater than 64 mm in longest dimension | D21: Schmid 1981, LeMaitre et al. 2002
A22: http://resource.geosciml.org/classifier/cgi/lithology/ash_breccia_bomb_or_block_tephra | B22: Ash breccia, bomb, or block tephra | C22: Tephra in which more than 25 percent of particles are greater than 64 mm in largest dimension. Includes ash breccia, bomb tephra and block tephra of Gillespie and Styles (1999) | D22: Schmid 1981, LeMaitre et al. 2002
A23: http://resource.geosciml.org/classifier/cgi/lithology/ash_tuff_lapillistone_and_lapilli_tuff | B23: Ash tuff, lapillistone, and lapilli tuff | C23: Pyroclastic rock in which less than 25 percent of rock by volume are more than 64 mm in longest diameter. Includes tuff, lapilli tuff, and lapillistone. | D23: Schmid 1981, LeMaitre et al. 2002
A24: http://resource.geosciml.org/classifier/cgi/lithology/basalt | B24: Basalt | C24: Fine-grained or porphyritic igneous rock with less than 20 percent quartz, and less than 10 percent feldspathoid minerals, in which the ratio of plagioclase to total feldspar is greater 0.65. Typically composed of calcic plagioclase and clinopyroxene, phenocrysts typically include one or more of calcic plagioclase, clinopyroxene, orthopyroxene, and olivine. Includes rocks defined modally in QAPF fields 9 and 10 or chemically in TAS field B as basalt. Basalt and andesite are distinguished chemically based on silica content, with basalt defined to contain less than 52 weight percent silica. If chemical data are not available, the color index is used to distinguish the categories, with basalt defined to contain greater than 35 percent mafic minerals by volume or greater than 40 percent mafic minerals by weight. | D24: after LeMaitre et al. 2002
A25: http://resource.geosciml.org/classifier/cgi/lithology/basanite | B25: Basanite | C25: Tephritoid that has a plagioclase to total feldspar ratio greater than 0.9, and contains more than 10 percent normative (CIPW) olivine. | D25: LeMaitre et al. 2002
A26: http://resource.geosciml.org/classifier/cgi/lithology/basanitic_foidite | B26: Basanitic foidite | C26: Foiditoid that contains less than 90 percent feldspathoid minerals in the QAPF fraction, and has a plagioclase to total feldspar ratio that is greater than 0.5, with greater than 10 percent normative olivine. | D26: LeMaitre et al. 2002
A27: http://resource.geosciml.org/classifier/cgi/lithology/basic_igneous_material | B27: Basic igneous material | C27: Igneous material with between 45 and 52 percent SiO2. | D27: after LeMaitre et al. 2002
A28: http://resource.geosciml.org/classifier/cgi/lithology/basic_igneous_rock | B28: Basic igneous rock | C28: Igneous rock with between 45 and 52 percent SiO2. | D28: after LeMaitre et al. 2002
A29: http://resource.geosciml.org/classifier/cgi/lithology/bauxite | B29: Bauxite | C29: Highly aluminous material containing abundant aluminium hydroxides (gibbsite, less commonly boehmite, diaspore) and aluminium-substituted iron oxides or hydroxides and generally minor or negligible kaolin minerals, may contain up to 20 percent quartz. Commonly has a pisolitic or nodular texture, and may be cemented. | D29: Eggleton 2001
A30: http://resource.geosciml.org/classifier/cgi/lithology/biogenic_sediment | B30: Biogenic sediment | C30: Sediment composed of greater than 50 percent material of biogenic origin. Because the biogenic material may be skeletal remains that are not organic, all biogenic sediment is not necessarily organic-rich. | D30: SLTTs 2004
A31: http://resource.geosciml.org/classifier/cgi/lithology/biogenic_silica_sedimentary_rock | B31: Biogenic silica sedimentary rock | C31: Sedimentary rock that consists of at least 50 percent silicate mineral material, deposited directly by biological processes at the depositional surface, or in particles formed by biological processes within the basin of deposition. | D31: based on NADM SLTT sedimentary, Hallsworth & Knox 1999
A32: http://resource.geosciml.org/classifier/cgi/lithology/bituminous_coal | B32: Bituminous coal | C32: Coal that has vitrinite mean random reflectance greater than 0.6% and less than 2.0% (determined in conformance with ISO 7404-5), or has a gross calorific value greater than 24 MJ/kg (determined in conformance with ISO 1928). Hard, black, organic rich sedimentary rock, contains less than 91 percent fixed carbon on a dry, mineral-matter-free basis, and greater than 13-14 percent volatiles (dry, ash free). Formed from the compaction or induration of variously altered plant remains similar to those of peaty deposits. | D32: Economic Commission for Europe, Committee on Sustainable Energy- United Nations (ECE-UN), 1998, International Classification of in-Seam Coals: Energy 19, 41 pp, see also http://en.wikipedia.org/wiki/Coal#Types_of_coal, Eberhard Lindner, Chemie für Ingenieure, Lindner Verlag Karlsruhe, S. 258
A33: http://resource.geosciml.org/classifier/cgi/lithology/boninite | B33: Boninite | C33: andesitic rock that contains more than 8 percent MgO. Typically consists of phenocrysts of protoenstatite, orthopyroxene, clinopyroxene, and olivine in a glassy base full of crystallites, and exhibits textures characterisitc of rapid crystal growth. | D33: LeMaitre et al. 2002
A34: http://resource.geosciml.org/classifier/cgi/lithology/boulder_gravel_size_sediment | B34: Boulder gravel size sediment^^xsd:string | C34: Sediment containing greater than 30 percent boulder-size particles (greater than 256 mm in diameter)^^xsd:string | D34: Wentworth size scale^^xsd:string
A35: http://resource.geosciml.org/classifier/cgi/lithology/boundstone | B35: Boundstone | C35: Sedimentary carbonate rock with preserved biogenic texture, whose original components were bound and encrusted together during deposition by the action of plants and animals during deposition, and remained substantially in the position of growth. | D35: Hallsworth and Knox 1999, SLTTs 2004
A36: http://resource.geosciml.org/classifier/cgi/lithology/breccia | B36: Breccia | C36: Coarse-grained material composed of angular broken rock fragments, the fragments typically have sharp edges and unworn corners. The fragments may be held together by a mineral cement or in a fine-grained matrix, and consolidated or nonconsolidated. Clasts may be of any composition or origin. In sedimentary environments, breccia is used for material that consists entirely of angular fragments, mostly derived from a single source rock body, as in a rock avalanche deposit, and matrix is interpreted to be the product of comminution of clasts during transport. Diamictite or diamicton is used when the material reflects mixing of rock from a variety of sources, some sub angular or subrounded clasts may be present, and matrix is pre-existing fine grained material that is not a direct product of the brecciation/deposition process. | D36: Neuendorf et al. 2005
A37: http://resource.geosciml.org/classifier/cgi/lithology/breccia_gouge_series | B37: Breccia-gouge series | C37: Fault material with features such as void spaces (filled or unfilled), or unconsolidated matrix material between fragments, indicating loss of cohesion during deformation. Includes fault-related breccia and gouge. | D37: SLTTm 2004
A38: http://resource.geosciml.org/classifier/cgi/lithology/calcareous_carbonate_sediment | B38: Calcareous carbonate sediment | C38: Carbonate sediment with a calcite (plus aragonite) to dolomite ratio greater than 1 to 1. Includes lime-sediments. | D38: after Hallsworth & Knox 1999
A39: http://resource.geosciml.org/classifier/cgi/lithology/calcareous_carbonate_sedimentary_material | B39: Calcareous carbonate sedimentary material | C39: Carbonate sedimentary material of unspecified consolidation state with a calcite (plus aragonite) to dolomite ratio greater than 1 to 1. Includes lime-sediments, limestone and dolomitic limestone. | D39: after Hallsworth & Knox 1999
A40: http://resource.geosciml.org/classifier/cgi/lithology/calcareous_carbonate_sedimentary_rock | B40: Calcareous carbonate sedimentary rock | C40: Carbonate sedimentary rock with a calcite (plus aragonite) to dolomite ratio greater than 1 to 1. Includes limestone and dolomitic limestone. | D40: SLTTs 2004, Hallsworth & Knox 1999
A41: http://resource.geosciml.org/classifier/cgi/lithology/carbonate_mud | B41: Carbonate mud | C41: Carbonate sediment composed of less than 25 percent clasts that have a maximum diameter more than 2 mm, and the ratio of sand size to mud size clasts is less than one. | D41: follow pattern used for clastic sand and mud categories, based on SLTTs 2004
A42: http://resource.geosciml.org/classifier/cgi/lithology/carbonate_mudstone | B42: Carbonate mudstone | C42: Mudstone that consists of greater than 50 percent carbonate minerals of any origin in the mud size fraction. | D42: This vocabulary
A43: http://resource.geosciml.org/classifier/cgi/lithology/carbonate_ooze | B43: Carbonate ooze | C43: ooze that consists of more than 50 percent carbonate skeletal remains | D43: This vocabulary
A44: http://resource.geosciml.org/classifier/cgi/lithology/carbonate_rich_mud | B44: Carbonate rich mud | C44: Mud size sediment that contains between 10 and 50 percent carbonate minerals in any size fraction. Carbonate origin is not specified. | D44: This vocabulary
A45: http://resource.geosciml.org/classifier/cgi/lithology/carbonate_rich_mudstone | B45: Carbonate rich mudstone | C45: Mudstone that contains between 10 and 50 percent carbonate minerals in the mud size fraction. Carbonate origin is not specified. | D45: This vocabulary
A46: http://resource.geosciml.org/classifier/cgi/lithology/carbonate_sediment | B46: Carbonate sediment | C46: Sediment in which at least 50 percent of the primary and/or recrystallized constituents are composed of one (or more) of the carbonate minerals calcite, aragonite and dolomite, in particles of intrabasinal origin. | D46: SLTTs 2004
A47: http://resource.geosciml.org/classifier/cgi/lithology/carbonate_sedimentary_material | B47: Carbonate sedimentary material | C47: Sedimentary material in which at least 50 percent of the primary and/or recrystallized constituents are composed of one (or more) of the carbonate minerals calcite, aragonite and dolomite, in particles of intrabasinal origin. | D47: SLTTs 2004
A48: http://resource.geosciml.org/classifier/cgi/lithology/carbonate_sedimentary_rock | B48: Carbonate sedimentary rock | C48: Sedimentary rock in which at least 50 percent of the primary and/or recrystallized constituents are composed of one (or more) of the carbonate minerals calcite, aragonite, magnesite or dolomite. | D48: SLTTs 2004
A49: http://resource.geosciml.org/classifier/cgi/lithology/carbonate_wackestone | B49: Carbonate wackestone | C49: Carbonate sedimentary rock with discernible mud supported depositional texture and containing greater than 10 percent allochems, and constituent particles are of intrabasinal origin. If particles are not intrabasinal, categorization as a mudstone or wackestone should be considered. | D49: Dunham 1962
A50: http://resource.geosciml.org/classifier/cgi/lithology/carbonatite | B50: Carbonatite | C50: Igneous rock composed of more than 50 percent modal carbonate minerals. | D50: LeMaitre et al. 2002
A51: http://resource.geosciml.org/classifier/cgi/lithology/cataclasite_series | B51: Cataclasite series | C51: Fault-related rock that maintained primary cohesion during deformation, with matrix comprising greater than 10 percent of rock mass, matrix is fine-grained material formed through grain size reduction by fracture as opposed to crystal plastic process that operate in mylonitic rock. Includes cataclasite, protocataclasite and ultracataclasite. | D51: Sibson, 1977, Scholz, 1990, Snoke and Tullis, 1998, Barker, 1998 Appendix II, NADM SLTTm, 2004
A52: http://resource.geosciml.org/classifier/cgi/lithology/chalk | B52: Chalk | C52: A generally soft, white, very fine-grained, extremely pure, porous limestone. It forms under marine conditions from the gradual accumulation of skeletal elements from minute planktonic green algae (cocoliths), associated with varying proportions of larger microscopic fragments of bivalves, foraminifera and ostracods. It is common to find flint and chert nodules embedded in chalk. | D52: http://en.wikipedia.org/wiki/Chalk, C.S. Harris, 2009, unpublished web pagehttp://www.geologyshop.co.uk/chalk.htm
A53: http://resource.geosciml.org/classifier/cgi/lithology/chemical_sedimentary_material | B53: Chemical sedimentary material | C53: Sedimentary material that consists of at least 50 percent material produced by inorganic chemical processes within the basin of deposition. Includes inorganic siliceous, carbonate, evaporite, iron-rich, and phosphatic sediment classes. | D53: SLTTs 2004
A54: http://resource.geosciml.org/classifier/cgi/lithology/chlorite_actinolite_epidote_metamorphic_rock | B54: Chlorite actinolite epidote metamorphic rock | C54: Metamorphic rock characterized by 50 percent or more of combined chlorite, actinolite and epidote. Category for rocks generally named greenschist or greenstone. | D54: This vocabulary
A55: http://resource.geosciml.org/classifier/cgi/lithology/clastic_conglomerate | B55: Conglomerate | C55: Clastic sedimentary rock composed of at least 30 percent rounded to subangular fragments larger than 2 mm in diameter, typically contains finer grained material in interstices between larger fragments. If more than 15 percent of the fine grained matrix is of indeterminant clastic or diagenetic origin and the fabric is matrix supported, may also be categorized as wackestone. If rock has unsorted or poorly sorted texture with a wide range of particle sizes, may also be categorized as diamictite. | D55: Neuendorf et al. 2005, SLTTs 2004
A56: http://resource.geosciml.org/classifier/cgi/lithology/clastic_mudstone | B56: Mudstone | C56: Clastic sedimentary rock consisting of less than 30 percent gravel-size (2 mm) particles and with a mud to sand ratio greater than 1. | D56: Pettijohn et al. 1987 referenced in Hallsworth & Knox 1999.
A57: http://resource.geosciml.org/classifier/cgi/lithology/clastic_sandstone | B57: Sandstone | C57: Clastic sedimentary rock in which less than 30 percent of particles are greater than 2 mm in diameter (gravel) and the sand to mud ratio is at least 1. | D57: SLTTs 2004, Neuendorf et al. 2005, particle size from Wentworth grade scale
A58: http://resource.geosciml.org/classifier/cgi/lithology/clastic_sediment | B58: Clastic sediment | C58: Sediment in which at least 50 percent of the constituent particles were derived from erosion, weathering, or mass-wasting of pre-existing earth materials, and transported to the place of deposition by mechanical agents such as water, wind, ice and gravity. | D58: SLTTs 2004, Neuendorf et al. 2005
A59: http://resource.geosciml.org/classifier/cgi/lithology/clastic_sedimentary_material | B59: Clastic sedimentary material | C59: Sedimentary material of unspecified consolidation state in which at least 50 percent of the constituent particles were derived from erosion, weathering, or mass-wasting of pre-existing earth materials, and transported to the place of deposition by mechanical agents such as water, wind, ice and gravity. | D59: SLTTs 2004, Neuendorf et al. 2005
A60: http://resource.geosciml.org/classifier/cgi/lithology/clastic_sedimentary_rock | B60: Clastic sedimentary rock | C60: Sedimentary rock in which at least 50 percent of the constituent particles were derived from erosion, weathering, or mass-wasting of pre-existing earth materials, and transported to the place of deposition by mechanical agents such as water, wind, ice and gravity. | D60: SLTTs 2004, Neuendorf et al. 2005
A61: http://resource.geosciml.org/classifier/cgi/lithology/clay | B61: Clay | C61: Mud that consists of greater than 50 percent particles with grain size less than 0.004 mm | D61: based on SLTTs 2004, Neuendorf et al. 2005, particle size from Wentworth grade scale
A62: http://resource.geosciml.org/classifier/cgi/lithology/claystone | B62: Claystone | C62: Mudstone that contains no detectable silt, inferred to consist virtually entirely of clay-size particles. | D62: This vocabulary
A63: http://resource.geosciml.org/classifier/cgi/lithology/coal | B63: Coal | C63: A consolidated organic sedimentary material having less than 75% moisture. This category includes low, medium, and high rank coals according to International Classification of In-Seam Coal (United Nations, 1998), thus including lignite. Sapropelic coal is not distinguished in this category from humic coals. Formed from the compaction or induration of variously altered plant remains similar to those of peaty deposits. | D63: Economic Commission for Europe, Committee on Sustainable Energy- United Nations (ECE-UN), 1998, International Classification of in-Seam Coals: Energy 19, 41 pp.
A64: http://resource.geosciml.org/classifier/cgi/lithology/cobble_gravel_size_sediment | B64: Cobble gravel size sediment^^xsd:string | C64: Sediment containing greater than 30 percent cobble-size particles (64-256 mm in diameter)^^xsd:string | D64: Wentworth size scale^^xsd:string
A65: http://resource.geosciml.org/classifier/cgi/lithology/composite_genesis_material | B65: Composite genesis material | C65: Material of unspecified consolidation state formed by geological modification of pre-existing materials outside the realm of igneous and sedimentary processes. Includes rocks formed by impact metamorphism, standard dynamothermal metamorphism, brittle deformation, weathering, metasomatism and hydrothermal alteration (diagenesis is a sedimentary process in this context). | D65: SLTTm 2004
A66: http://resource.geosciml.org/classifier/cgi/lithology/composite_genesis_rock | B66: Composite genesis rock | C66: Rock formed by geological modification of pre-existing rocks outside the realm of igneous and sedimentary processes. Includes rocks formed by impact metamorphism, standard dynamothermal metamorphism, brittle deformation, weathering, metasomatism and hydrothermal alteration (diagenesis is a sedimentary process in this context). | D66: SLTTm 2004
A67: http://resource.geosciml.org/classifier/cgi/lithology/compound_material | B67: Compound material | C67: An Earth Material composed of an aggregation of particles of Earth Material, possibly including other Compound Materials. This is 'top' of lithology category hierarchy, and should be used to indicate 'any rock or unconsolidated material'. | D67: NADM C1 2004
A68: http://resource.geosciml.org/classifier/cgi/lithology/crystalline_carbonate | B68: Crystalline carbonate | C68: Carbonate rock of indeterminate mineralogy in which diagenetic processes have obliterated any original depositional texture. | D68: SLTTs 2004
A69: http://resource.geosciml.org/classifier/cgi/lithology/dacite | B69: Dacite | C69: Fine grained or porphyritic crystalline rock that contains less than 90 percent mafic minerals, between 20 and 60 percent quartz in the QAPF fraction, and has a plagioclase to total feldspar ratio greater than 0.65. Includes rocks defined modally in QAPF fields 4 and 5 or chemically in TAS Field O3. Typcially composed of quartz and sodic plagioclase with minor amounts of biotite and/or hornblende and/or pyroxene, fine-grained equivalent of granodiorite and tonalite. | D69: LeMaitre et al. 2002
A70: http://resource.geosciml.org/classifier/cgi/lithology/diamictite | B70: Diamictite | C70: Unsorted or poorly sorted, clastic sedimentary rock with a wide range of particle sizes including a muddy matrix. Biogenic materials that have such texture are excluded. Distinguished from conglomerate, sandstone, mudstone based on polymodality and lack of structures related to transport and deposition of sediment by moving air or water. If more than 10 percent of the fine grained matrix is of indeterminant clastic or diagenetic origin and the fabric is matrix supported, may also be categorized as wacke. | D70: Fairbridge and Bourgeois 1978
A71: http://resource.geosciml.org/classifier/cgi/lithology/diamicton | B71: Diamicton | C71: Unsorted or poorly sorted, clastic sediment with a wide range of particle sizes, including a muddy matrix. Biogenic materials that have such texture are excluded. Distinguished from conglomerate, sandstone, mudstone based on polymodality and lack of structures related to transport and deposition of sediment by moving air or water. Assignment to an other size class can be used in conjunction to indicate the dominant grain size. | D71: Fairbridge and Bourgeois 1978
A72: http://resource.geosciml.org/classifier/cgi/lithology/diorite | B72: Diorite | C72: Phaneritic crystalline rock consisting of intermediate plagioclase, commonly with hornblende and often with biotite or augite, colour index M less than 90, sodic plagioclase (An0-An50), no feldspathoid, and between 0 and 5 percent quartz. Includes rocks defined modally in QAPF field 10 as diorite. | D72: LeMaitre et al. 2002
A73: http://resource.geosciml.org/classifier/cgi/lithology/dioritic_rock | B73: Dioritic rock | C73: Phaneritic crystalline rock with M less than 90, consisting of intermediate plagioclase, commonly with hornblende and often with biotite or augite. A dioritoid with a plagioclase to total feldspar ratio (in the QAPF fraction) greater than 0.9. Includes rocks defined modally in QAPF fields 10, 10' and 10*. | D73: LeMaitre et al. 2002
A74: http://resource.geosciml.org/classifier/cgi/lithology/dioritoid | B74: Dioritoid | C74: Phaneritic crystalline igneous rock with M less than 90, consisting of intermediate plagioclase, commonly with hornblende and often with biotite or augite. Plagioclase to total feldspar ratio is greater that 0.65, and anorthite content of plagioclase is less than 50 percent. Less than 10 percent feldspathoid mineral and less than 20 percent quartz in the QAPF fraction. Includes rocks defined modally in QAPF fields 9 and 10 (and their subdivisions). | D74: LeMaitre et al. 2002
A75: http://resource.geosciml.org/classifier/cgi/lithology/doleritic_rock | B75: Doleritic rock | C75: Dark colored gabbroic (basaltic) or dioritic (andesitic) rock intermediate in grain size between basalt and gabbro and composed of plagioclase, pyroxene and opaque minerals, often with ophitic texture. Typically occurs as hypabyssal intrusions. Includes dolerite, microdiorite, diabase and microgabbro. | D75: Neuendorf et al 2005, LeMaitre et al. 2002, Gillespie and Styles 1999
A76: http://resource.geosciml.org/classifier/cgi/lithology/dolomitic_or_magnesian_sedimentary_material | B76: Dolomitic or magnesian sedimentary material | C76: Carbonate sedimentary material of unspecified consolidation degree with a ratio of magnesium carbonate to calcite (plus aragonite) greater than 1 to 1. Includes dolomite sediment, dolostone, lime dolostone and magnesite-stone. | D76: after SLTTs 2004hallsworth and Knox 1999
A77: http://resource.geosciml.org/classifier/cgi/lithology/dolomitic_or_magnesian_sedimentary_rock | B77: Dolomitic or magnesian sedimentary rock | C77: Carbonate sedimentary rock with a ratio of magnesium carbonate to calcite (plus aragonite) greater than 1 to 1. Includes dolostone, lime dolostone and magnesite-stone. | D77: after SLTTs 2004hallsworth and Knox 1999
A78: http://resource.geosciml.org/classifier/cgi/lithology/dolomitic_sediment | B78: Dolomitic sediment | C78: Carbonate sediment with a ratio of magnesium carbonate to calcite (plus aragonite) greater than 1 to 1. | D78: after SLTTs 2004hallsworth and Knox 1999
A79: http://resource.geosciml.org/classifier/cgi/lithology/dolostone | B79: Dolomite | C79: Pure carbonate sedimentary rock with a ratio of magnesium carbonate to calcite (plus aragonite) greater than 1 to 1. | D79: This vocabulary
A80: http://resource.geosciml.org/classifier/cgi/lithology/duricrust | B80: Duricrust | C80: Rock forming a hard crust or layer at or near the Earth's surface at the time of formation, e.g. in the upper horizons of a soil, characterized by structures indicative of pedogenic origin. | D80: This vocabulary
A81: http://resource.geosciml.org/classifier/cgi/lithology/eclogite | B81: Eclogite | C81: Metamorphic rock composed of 75 percent or more (by volume) omphacite and garnet, both of which are present as major constituents, the amount of neither of them being higher than 75 percent (by volume), the presence of plagioclase precludes classification as an eclogite. | D81: IUGS SCMR 2007 (http://www.bgs.ac.uk/SCMR/)
A82: http://resource.geosciml.org/classifier/cgi/lithology/evaporite | B82: Evaporite | C82: Nonclastic sedimentary rock composed of at least 50 percent non-carbonate salts, including chloride, sulfate or borate minerals, formed through precipitation of mineral salts from a saline solution (non-carbonate salt rock). | D82: Jackson 1997, SLTTs 2004
A83: http://resource.geosciml.org/classifier/cgi/lithology/exotic_alkaline_rock | B83: Exotic alkaline rock | C83: Kimberlite, lamproite, or lamprophyre. Generally are potassic, mafic or ultramafic rocks. Olivine (commonly serpentinized in kimberlite), and phlogopite are significant constituents. | D83: based on LeMaitre et al. 2002
A84: http://resource.geosciml.org/classifier/cgi/lithology/exotic_composition_igneous_rock | B84: Exotic composition igneous rock | C84: Rock with 'exotic' mineralogical, textural or field setting characteristics, typically dark colored, with abundant phenocrysts. Criteria include: presence of greater than 10 percent melilite or leucite, or presence of kalsilite, or greater than 50 percent carbonate minerals. Includes Carbonatite, Melilitic rock, Kalsilitic rocks, Kimberlite, Lamproite, Leucitic rock and Lamprophyres. | D84: Gillespie and Styles 1999, LeMaitre et al. 2002
A85: http://resource.geosciml.org/classifier/cgi/lithology/exotic_evaporite | B85: Exotic evaporite | C85: Evaporite that is not 50 percent halite or 50 percent gypsum or anhydrite. | D85: This vocabulary
A86: http://resource.geosciml.org/classifier/cgi/lithology/fault_related_material | B86: Fault-related material | C86: Material formed as a result brittle faulting, composed of greater than 10 percent matrix, matrix is fine-grained material caused by tectonic grainsize reduction. Includes cohesive (cataclasite series) and non-cohesive (breccia-gouge series) material. | D86: This vocabulary, SLTTm 2004
A87: http://resource.geosciml.org/classifier/cgi/lithology/fine_grained_igneous_rock | B87: Fine grained igneous rock | C87: Igneous rock in which the framework of the rock consists of crystals that are too small to determine mineralogy with the unaided eye, framework may include up to 50 percent glass. A significant percentage of the rock by volume may be phenocrysts. Includes rocks that are generally called volcanic rocks. | D87: Gillespie and Styles 1999, LeMaitre et al. 2002
A88: http://resource.geosciml.org/classifier/cgi/lithology/foid_bearing_alkali_feldspar_syenite | B88: Foid bearing alkali feldspar syenite | C88: Alkali feldspar syenitic rock that contains 0-10 percent feldspathoid mineral and no quartz in the QAPF fraction. QAPF field 6'. | D88: LeMaitre et al. 2002
A89: http://resource.geosciml.org/classifier/cgi/lithology/foid_bearing_alkali_feldspar_trachyte | B89: Foid bearing alkali feldspar trachyte | C89: Alkali feldspar trachytic rock that contains no quartz and between 0 and 10 percent feldspathoid mineral in the QAPF fraction. QAPF field 6'. | D89: LeMaitre et al. 2002
A90: http://resource.geosciml.org/classifier/cgi/lithology/foid_bearing_anorthosite | B90: Foid bearing anorthosite | C90: Anorthositic rock that contains between 0 and 10 percent feldspathoid mineral and no quartz in the QAPF fraction. QAPF field 10'. | D90: LeMaitre et al. 2002
A91: http://resource.geosciml.org/classifier/cgi/lithology/foid_bearing_diorite | B91: Foid bearing diorite | C91: Dioritic rock that contains between 0 and 10 percent feldspathoid minerals in the QAPF fraction. QAPF field 10'. | D91: LeMaitre et al. 2002
A92: http://resource.geosciml.org/classifier/cgi/lithology/foid_bearing_gabbro | B92: Foid bearing gabbro | C92: Gabbroic rock that contains 0-10 percent feldspathoid minerals and no quartz in the QAPF fraction. QAPF field 10'. | D92: LeMaitre et al. 2002
A93: http://resource.geosciml.org/classifier/cgi/lithology/foid_bearing_latite | B93: Foid bearing latite | C93: Latitic rock that contains no quartz and between 0 and 10 percent feldspathoid minerals in the QAPF fraction. QAPF field 8'. | D93: LeMaitre et al. 2002
A94: http://resource.geosciml.org/classifier/cgi/lithology/foid_bearing_monzodiorite | B94: Foid bearing monzodiorite | C94: Monzodioritic rock that contains between 0 and 10 percent feldspathoid mineral. | D94: LeMaitre et al. 2002
A95: http://resource.geosciml.org/classifier/cgi/lithology/foid_bearing_monzogabbro | B95: Foid bearing monzogabbro | C95: Monzogabbroic rock that contains 0 to 10 percent feldspathoid mineral in the QAPF fraction. QAPF field 9'. | D95: LeMaitre et al. 2002
A96: http://resource.geosciml.org/classifier/cgi/lithology/foid_bearing_monzonite | B96: Foid bearing monzonite | C96: Monzonitic rock that contains 0-10 percent feldspathoid mineral and no quartz in the QAPF fraction. Includes rocks defined modally in QAPF Field 8'. | D96: LeMaitre et al. 2002
A97: http://resource.geosciml.org/classifier/cgi/lithology/foid_bearing_syenite | B97: Foid bearing syenite | C97: Syenitic rock that contains between 0 and 10 percent feldspathoid mineral and no quartz in the QAPF fraction. Defined modally in QAPF Field 7'. | D97: LeMaitre et al. 2002
A98: http://resource.geosciml.org/classifier/cgi/lithology/foid_bearing_trachyte | B98: Foid bearing trachyte | C98: Trachytic rock that contains between 0 and 10 percent feldspathoid in the QAPF fraction, and no quartz. QAPF field 7'. | D98: LeMaitre et al. 2002
A99: http://resource.geosciml.org/classifier/cgi/lithology/foid_diorite | B99: Foid diorite | C99: Foid dioritoid in which the plagioclase to total feldspar ratio is greater than 0.9. Includes rocks defined modally in QAPF field 14. | D99: LeMaitre et al. 2002
A100: http://resource.geosciml.org/classifier/cgi/lithology/foid_dioritoid | B100: Foid dioritoid | C100: Phaneritic crystalline igneous rock in which M is less than 90, the plagioclase to total feldspar ratio is greater than 0.5, feldspathoid minerals form 10-60 percent of the QAPF fraction, plagioclase has anorthite content less than 50 percent. These rocks typically contain large amounts of mafic minerals. Includes rocks defined modally in QAPF fields 13 and 14. | D100: LeMaitre et al. 2002
A101: http://resource.geosciml.org/classifier/cgi/lithology/foid_gabbro | B101: Foid gabbro | C101: Foid gabbroid that has a plagioclase to total feldspar ratio greater than 0.9. Includes rocks defined modally in QAPF field 14. | D101: LeMaitre et al. 2002
A102: http://resource.geosciml.org/classifier/cgi/lithology/foid_gabbroid | B102: Foid gabbroid | C102: Phaneritic crystalline igneous rock in which M is less than 90, the plagioclase to total feldspar ratio is greater than 0.5, feldspathoids form 10-60 percent of the QAPF fraction, and plagioclase has anorthite content greater than 50 percent. These rocks typically contain large amounts of mafic minerals. Includes rocks defined modally in QAPF fields 13 and 14. | D102: LeMaitre et al. 2002
A103: http://resource.geosciml.org/classifier/cgi/lithology/foid_monzodiorite | B103: Foid monzodiorite | C103: Foid dioritoid in which the plagioclase to total feldspar ratio is between 0.1 and 0.9. Includes rocks defined modally in QAPF field 13. | D103: LeMaitre et al. 2002
A104: http://resource.geosciml.org/classifier/cgi/lithology/foid_monzogabbro | B104: Foid monzogabbro | C104: Foid gabbroid that has a plagioclase to total feldspar ratio between 0.5 and 0.9. Includes rocks defined modally in QAPF field 13. | D104: LeMaitre et al. 2002
A105: http://resource.geosciml.org/classifier/cgi/lithology/foid_monzosyenite | B105: Foid monzosyenite | C105: Foid syenitoid rock that has a plagioclase to total feldspar ratio of between 0.1 and 0.5. Includes rocks defined modally in QAPF Field 12. | D105: LeMaitre et al. 2002
A106: http://resource.geosciml.org/classifier/cgi/lithology/foid_syenite | B106: Foid syenite | C106: Foid syenitoid that has a plagioclase to total feldspar ratio of less than 0.1. Includes rocks defined modally in QAPF field 11. | D106: LeMaitre et al. 2002
A107: http://resource.geosciml.org/classifier/cgi/lithology/foid_syenitoid | B107: Foid syenitoid | C107: Phaneritic crystalline igneous rock with M less than 90, contains between 10 and 60 percent feldspathoid mineral in the QAPF fraction, and has a plagioclase to total feldspar ratio less than 0.5. Includes QAPF fields 11 and 12. | D107: LeMaitre et al. 2002
A108: http://resource.geosciml.org/classifier/cgi/lithology/foidite | B108: Foidite | C108: Foiditoid that contains greater than 90 percent feldspathoid minerals in the QAPF fraction. | D108: LeMaitre et al. 2002
A109: http://resource.geosciml.org/classifier/cgi/lithology/foiditoid | B109: Foiditoid | C109: Fine grained crystalline rock containing less than 90 percent mafic minerals and more than 60 percent feldspathoid minerals in the QAPF fraction. Includes rocks defined modally in QAPF field 15 or chemically in TAS field F. | D109: LeMaitre et al. 2002
A110: http://resource.geosciml.org/classifier/cgi/lithology/foidolite | B110: Foidolite | C110: Phaneritic crystalline rock containing more than 60 percent feldspathoid minerals in the QAPF fraction. Includes rocks defined modally in QAPF field 15 | D110: LeMaitre et al. 2002
A111: http://resource.geosciml.org/classifier/cgi/lithology/foliated_metamorphic_rock | B111: Foliated metamorphic rock | C111: Metamorphic rock in which 10 percent or more of the contained mineral grains are elements in a planar or linear fabric. Cataclastic or glassy character precludes classification with this concept. | D111: based on NADM SLTT metamorphic
A112: http://resource.geosciml.org/classifier/cgi/lithology/fragmental_igneous_material | B112: Fragmental igneous material | C112: igneous_material of unspecified consolidation state in which greater than 75 percent of the rock consists of fragments produced as a result of igneous rock-forming process. | D112: CGI concept definition task group
A113: http://resource.geosciml.org/classifier/cgi/lithology/fragmental_igneous_rock | B113: Fragmental igneous rock | C113: Igneous rock in which greater than 75 percent of the rock consists of fragments produced as a result of igneous rock-forming process. Includes pyroclastic rocks, autobreccia associated with lava flows and intrusive breccias. Excludes deposits reworked by epiclastic processes (see Tuffite) | D113: This vocabulary
A114: http://resource.geosciml.org/classifier/cgi/lithology/framestone | B114: Framestone | C114: Carbonate reef rock consisting of a rigid framework of colonies, shells or skeletons, with internal cavities filled with fine sediment, usually created through the activities of colonial organisms. | D114: Hallsworth & Knox 1999, SLTTs 2004, Table 15-3-1
A115: http://resource.geosciml.org/classifier/cgi/lithology/gabbro | B115: Gabbro | C115: Gabbroic rock that contains between 0 and 5 percent quartz and no feldspathoid mineral in the QAPF fraction. Includes rocks defined modally in QAPF Field 10 as gabbro. | D115: LeMaitre et al. 2002
A116: http://resource.geosciml.org/classifier/cgi/lithology/gabbroic_rock | B116: Gabbroic rock | C116: Gabbroid that has a plagioclase to total feldspar ratio greater than 0.9 in the QAPF fraction. Includes QAPF fields 10*, 10, and 10'. This category includes the various categories defined in LeMaitre et al. (2002) based on the mafic mineralogy, but apparently not subdivided based on the quartz/feldspathoid content. | D116: LeMaitre et al. 2002
A117: http://resource.geosciml.org/classifier/cgi/lithology/gabbroid | B117: Gabbroid | C117: Phaneritic crystalline igneous rock that contains less than 90 percent mafic minerals, and up to 20 percent quartz or up to 10 percent feldspathoid in the QAPF fraction. The ratio of plagioclase to total feldspar is greater than 0.65, and anorthite content of the plagioclase is greater than 50 percent. Includes rocks defined modally in QAPF fields 9 and 10 and their subdivisions. | D117: LeMaitre et al. 2002
A118: http://resource.geosciml.org/classifier/cgi/lithology/generic_conglomerate | B118: Generic conglomerate | C118: Sedimentary rock composed of at least 30 percent rounded to subangular fragments larger than 2 mm in diameter, typically contains finer grained material in interstices between larger fragments. If more than 15 percent of the fine grained matrix is of indeterminant clastic or diagenetic origin and the fabric is matrix supported, may also be categorized as wackestone. If rock has unsorted or poorly sorted texture with a wide range of particle sizes, may also be categorized as diamictite. | D118: Neuendorf et al. 2005, SLTTs 2004, particle sizes defined from Krumbein phi scale (W C Krumbein & L L Sloss, Stratigraphy and Sedimentation, 2nd edition, Freeman, San Francisco, 1963, Krumbein and Pettijohn, 1938, Manual of Sedimentary Petrography: New York, Appleton Century Co., Inc.)
A119: http://resource.geosciml.org/classifier/cgi/lithology/generic_mudstone | B119: Generic mudstone | C119: Sedimentary rock consisting of less than 30 percent gravel-size (2 mm) particles and with a mud to sand ratio greater than 1. Clasts may be of any composition or origin. | D119: Pettijohn et al. 1987 referenced in Hallsworth & Knox 1999, extrapolated from Folk, 1954, Figure 1a, particle sizes defined from Krumbein phi scale (W C Krumbein & L L Sloss, Stratigraphy and Sedimentation, 2nd edition, Freeman, San Francisco, 1963, Krumbein and Pettijohn, 1938, Manual of Sedimentary Petrography: New York, Appleton Century Co., Inc.)
A120: http://resource.geosciml.org/classifier/cgi/lithology/generic_sandstone | B120: Generic sandstone | C120: Sedimentary rock in which less than 30 percent of particles are greater than 2 mm in diameter (gravel) and the sand to mud ratio is at least 1. | D120: SLTTs 2004, Neuendorf et al. 2005, particle sizes defined from Krumbein phi scale (W C Krumbein & L L Sloss, Stratigraphy and Sedimentation, 2nd edition, Freeman, San Francisco, 1963, Krumbein and Pettijohn, 1938, Manual of Sedimentary Petrography: New York, Appleton Century Co., Inc.)
A121: http://resource.geosciml.org/classifier/cgi/lithology/glass_rich_igneous_rock | B121: Glass rich igneous rock | C121: Igneous rock that contains greater than 50 percent massive glass. | D121: This vocabulary, based on Gillespie and Styles 1999
A122: http://resource.geosciml.org/classifier/cgi/lithology/glassy_igneous_rock | B122: Glassy igneous rock | C122: Igneous rock that consists of greater than 80 percent massive glass. | D122: This vocabulary
A123: http://resource.geosciml.org/classifier/cgi/lithology/glaucophane_lawsonite_epidote_metamorphic_rock | B123: Glaucophane lawsonite epidote metamorphic rock | C123: A metamorphic rock of roughly basaltic composition, defined by the presence of glaucophane with lawsonite or epidote. Other minerals that may be present include jadeite, albite, chlorite, garnet, and muscovite (phengitic white mica). Typically fine-grained, dark colored. Category for rocks commonly referred to as blueschist. | D123: This vocabulary
A124: http://resource.geosciml.org/classifier/cgi/lithology/gneiss | B124: Gneiss | C124: Foliated metamorphic rock with bands or lenticles rich in granular minerals alternating with bands or lenticles rich in minerals with a flaky or elongate prismatic habit. Mylonitic foliation or well developed, continuous schistosity (greater than 50 percent of the rock consists of grains participate in a planar or linear fabric) precludes classification with this concept. | D124: Neuendorf et al. 2005
A125: http://resource.geosciml.org/classifier/cgi/lithology/grainstone | B125: Grainstone | C125: Carbonate sedimentary rock with recognizable depositional fabric that is grain-supported, and constituent particles are of intrabasinal origin, contains little or no mud matrix. Distinction from sandstone is based on interpretation of intrabasinal origin of clasts and grain-supported fabric, but grainstone definition does not include a grain size criteria. | D125: Dunham 1962
A126: http://resource.geosciml.org/classifier/cgi/lithology/granite | B126: Granite | C126: Phaneritic crystalline rock consisting of quartz, alkali feldspar and plagioclase (typically sodic) in variable amounts, usually with biotite and/or hornblende. Includes rocks defined modally in QAPF Field 3. | D126: LeMaitre et al. 2002
A127: http://resource.geosciml.org/classifier/cgi/lithology/granitoid | B127: Granitoid | C127: Phaneritic crystalline igneous rock consisting of quartz, alkali feldspar and/or plagioclase. Includes rocks defined modally in QAPF fields 2, 3, 4 and 5 as alkali feldspar granite, granite, granodiorite or tonalite. | D127: LeMaitre et al. 2002
A128: http://resource.geosciml.org/classifier/cgi/lithology/granodiorite | B128: Granodiorite | C128: Phaneritic crystalline rock consisting essentially of quartz, sodic plagioclase and lesser amounts of alkali feldspar with minor hornblende and biotite. Includes rocks defined modally in QAPF field 4. | D128: LeMaitre et al. 2002
A129: http://resource.geosciml.org/classifier/cgi/lithology/granofels | B129: Granofels | C129: Metamorphic rock with granoblastic fabric and very little or no foliation (less than 10 percent of the mineral grains in the rock are elements in a planar or linear fabric). Grainsize not specified. | D129: SLTTm 2004
A130: http://resource.geosciml.org/classifier/cgi/lithology/granulite | B130: Granulite | C130: Metamorphic rock of high metamorphic grade in which Fe-Mg silicate minerals are dominantly hydroxl-free, feldspar must be present, and muscovite is absent, rock contains less than 90 percent mafic minerals, less than 75 percent calcite and/or dolomite, less than 75 percent quartz, less than 50 percent iron-bearing minerals (hematite, magnetite, limonite-group, siderite, iron-sulfides), and less than 50 percent calc-silicate minerals. | D130: Fettes and Desmons (2007). See also Wimmenauer (1985), Winkler (1979) (D.R. Bowes (1989), The Encyclopedia of Igneous and Metamorphic Petrology, Van Nostrand Reinhold ISBN: 0-442-20623-2 wikipediahttp://en.wikipedia.org/wiki/Granulite accessed 5/30/09
A131: http://resource.geosciml.org/classifier/cgi/lithology/gravel | B131: Gravel | C131: Clastic sediment containing greater than 30 percent gravel-size particles (greater than 2.0 mm diameter). Gravel in which more than half of the particles are of epiclastic origin | D131: definition of gravel from SLTTs 2004, particle sizes defined from Krumbein phi scale (W C Krumbein & L L Sloss, Stratigraphy and Sedimentation, 2nd edition, Freeman, San Francisco, 1963, Krumbein and Pettijohn, 1938, Manual of Sedimentary Petrography: New York, Appleton Century Co., Inc.)
A132: http://resource.geosciml.org/classifier/cgi/lithology/gravel_size_sediment | B132: Gravel size sediment | C132: Sediment containing greater than 30 percent gravel-size particles (greater than 2.0 mm diameter). Composition or gensis of clasts not specified. | D132: SLTTs 2004, particle sizes defined from Krumbein phi scale (W C Krumbein & L L Sloss, Stratigraphy and Sedimentation, 2nd edition, Freeman, San Francisco, 1963, Krumbein and Pettijohn, 1938, Manual of Sedimentary Petrography: New York, Appleton Century Co., Inc.)
A133: http://resource.geosciml.org/classifier/cgi/lithology/high_magnesium_fine_grained_igneous_rocks | B133: High magnesium fine grained igneous rock | C133: fine-grained igneous rock that contains unusually high concentration of MgO. For rocks that contain greater than 52 percent silica, MgO must be greater than 8 percent. For rocks containing less than 52 percent silica, MgO must be greater than 12 percent. | D133: LeMaitre et al. 2002
A134: http://resource.geosciml.org/classifier/cgi/lithology/hornblendite | B134: Hornblendite | C134: Ultramafic rock that consists of greater than 40 percent hornblende plus pyroxene and has a hornblende to pyroxene ratio greater than 1. Includes olivine hornblendite, olivine-pyroxene hornblendite, pyroxene hornblendite, and hornblendite. | D134: LeMaitre et al. 2002
A135: http://resource.geosciml.org/classifier/cgi/lithology/hornfels | B135: Hornfels | C135: Granofels formed by contact metamorphism, composed of a mosaic of equidimensional grains in a characteristically granoblastic or decussate matrix, porphyroblasts or relict phenocrysts may be present. Typically fine grained. | D135: IUGS SCMR 2007 (http://www.bgs.ac.uk/SCMR/)
A136: http://resource.geosciml.org/classifier/cgi/lithology/hybrid_sediment | B136: Hybrid sediment | C136: Sediment that does not fit any of the other sediment composition/genesis categories. Sediment consisting of three or more components which form more than 5 percent but less than 50 precent of the material. | D136: Hallsworth and Knox, 1999
A137: http://resource.geosciml.org/classifier/cgi/lithology/hybrid_sedimentary_rock | B137: Hybrid sedimentary rock | C137: Sedimentary rock that does not fit any of the other composition/genesis categories. Sedimentary rock consisting of three or more components which form more than 5 percent but less than 50 precent of the material. | D137: Hallsworth and Knox, 1999
A138: http://resource.geosciml.org/classifier/cgi/lithology/igneous_material | B138: Igneous material | C138: Earth material formed as a result of igneous processes, eg. intrusion and cooling of magma in the crust, volcanic eruption. | D138: This vocabulary
A139: http://resource.geosciml.org/classifier/cgi/lithology/igneous_rock | B139: Igneous rock | C139: rock formed as a result of igneous processes, for example intrusion and cooling of magma in the crust, or volcanic eruption. | D139: Neuendorf et al 2005
A140: http://resource.geosciml.org/classifier/cgi/lithology/impact_generated_material | B140: Impact generated material | C140: Material that contains features indicative of shock metamorphism, such as microscopic planar deformation features within grains or shatter cones, interpreted to be the result of extraterrestrial bolide impact. Includes breccias and melt rocks. | D140: Stöffler and Grieve 2007, Jackson 1997
A141: http://resource.geosciml.org/classifier/cgi/lithology/impure_calcareous_carbonate_sediment | B141: Impure calcareous carbonate sediment | C141: Carbonate sediment in which between 50 and 90 percent of the constituents are composed of one (or more) of the carbonate minerals in particles of intrabasinal origin, and a calcite (plus aragonite) to dolomite ratio greater than 1 to 1. | D141: This vocabulary
A142: http://resource.geosciml.org/classifier/cgi/lithology/impure_carbonate_sediment | B142: Impure carbonate sediment | C142: Carbonate sediment in which between 50 and 90 percent of the constituents are composed of one (or more) of the carbonate minerals in particles of intrabasinal origin. | D142: This vocabulary
A143: http://resource.geosciml.org/classifier/cgi/lithology/impure_carbonate_sedimentary_rock | B143: Impure carbonate sedimentary rock | C143: Sedimentary rock in which between 50 and 90 percent of the primary and/or recrystallized constituents are composed of carbonate minerals. | D143: This vocabulary
A144: http://resource.geosciml.org/classifier/cgi/lithology/impure_dolomitic_sediment | B144: Impure dolomitic sediment | C144: Carbonate sediment in which between 50 and 90 percent of the constituents are composed of one (or more) of the carbonate minerals in particles of intrabasinal origin, and the ratio of magnesium carbonate to calcite (plus aragonite) greater than 1 to 1. | D144: This vocabulary
A145: http://resource.geosciml.org/classifier/cgi/lithology/impure_dolostone | B145: Impure dolomite | C145: Impure carbonate sedimentary rock with a ratio of magnesium carbonate to calcite (plus aragonite) greater than 1 to 1. | D145: This vocabulary
A146: http://resource.geosciml.org/classifier/cgi/lithology/impure_limestone | B146: Impure limestone | C146: Impure carbonate sedimentary rock with a calcite (plus aragonite) to dolomite ratio greater than 1 to 1. | D146: This vocabulary
A147: http://resource.geosciml.org/classifier/cgi/lithology/intermediate_composition_igneous_material | B147: Intermediate composition igneous material | C147: Igneous material with between 52 and 63 percent SiO2. | D147: after LeMaitre et al. 2002
A148: http://resource.geosciml.org/classifier/cgi/lithology/intermediate_composition_igneous_rock | B148: Intermediate composition igneous rock | C148: Igneous rock with between 52 and 63 percent SiO2. | D148: after LeMaitre et al. 2002
A149: http://resource.geosciml.org/classifier/cgi/lithology/iron_rich_sediment | B149: Iron rich sediment | C149: Sediment that consists of at least 50 percent iron-bearing minerals (hematite, magnetite, limonite-group, siderite, iron-sulfides), as determined by hand-lens or petrographic analysis. Corresponds to a rock typically containing 15 percent iron by weight. | D149: SLTTs 2004
A150: http://resource.geosciml.org/classifier/cgi/lithology/iron_rich_sedimentary_material | B150: Iron rich sedimentary material | C150: Sedimentary material of unspecified consolidation state that consists of at least 50 percent iron-bearing minerals (hematite, magnetite, limonite-group, siderite, iron-sulfides), as determined by hand-lens or petrographic analysis. Corresponds to a rock typically containing 15 percent iron by weight. | D150: SLTTs 2004
A151: http://resource.geosciml.org/classifier/cgi/lithology/iron_rich_sedimentary_rock | B151: Iron rich sedimentary rock | C151: Sedimentary rock that consists of at least 50 percent iron-bearing minerals (hematite, magnetite, limonite-group, siderite, iron-sulfides), as determined by hand-lens or petrographic analysis. Corresponds to a rock typically containing 15 percent iron by weight. | D151: Hallsworth and Knox 1999, SLTTs 2004
A152: http://resource.geosciml.org/classifier/cgi/lithology/kalsilitic_and_melilitic_rock | B152: Kalsilitic and melilitic rocks | C152: Igneous rock containing greater than 10 percent melilite or kalsilite. Typically undersaturated, ultrapotassic (kalsilitic rocks) or calcium-rich (melilitic rocks) mafic or ultramafic rocks. | D152: based on LeMaitre et al. 2002
A153: http://resource.geosciml.org/classifier/cgi/lithology/komatiitic_rock | B153: Komatiitic rock | C153: Ultramafic, magnesium-rich volcanic rock, typically with spinifex texture of intergrown skeletal and bladed olivine and pyroxene crystals set in abundant glass. Includes komatiite and meimechite. | D153: LeMaitre et al. 2002
A154: http://resource.geosciml.org/classifier/cgi/lithology/latite | B154: Latite | C154: Latitic rock that contains between 0 and 5 percent quartz and no feldspathoid in the QAPF fraction. QAPF field 8. | D154: LeMaitre et al. 2002
A155: http://resource.geosciml.org/classifier/cgi/lithology/latitic_rock | B155: Latitic rock | C155: Trachytoid that has a plagioclase to total feldspar ratio between 0.35 and 0.65. QAPF fields 8, 8' and 8*. | D155: LeMaitre et al. 2002
A156: http://resource.geosciml.org/classifier/cgi/lithology/lignite | B156: Lignite | C156: Coal that has a gross calorific value less than 24 MJ/kg (determined in conformance with ISO 1928), and vitrinite mean random reflectance less than 0.6% (determined in conformance with ISO 7404-5). Gross calorific value is recalculated to a moist, ash free basis using bed moisture (determined according to ISO 1015 or ISO 5068). Includes all low-rank coals, including sub-bitiminous coal. A consolidated, dull, soft brown to black coal having many readily discernible plant fragments set in a finer grained organic matrix. Tends to crack and fall apart on drying. Operationally sub-bituminous and bitiminous coal are qualitatively distinguished based on brown streak for sub-bitiminous coal and black streak for bituminous coal. | D156: Economic Commission for Europe, Committee on Sustainable Energy- United Nations (ECE-UN), 1998, International Classification of in-Seam Coals: Energy 19, 41 pp.
A157: http://resource.geosciml.org/classifier/cgi/lithology/limestone | B157: Limestone | C157: Pure carbonate sedimentary rock with a calcite (plus aragonite) to dolomite ratio greater than 1 to 1. Includes limestone and dolomitic limestone. | D157: This vocabulary
A158: http://resource.geosciml.org/classifier/cgi/lithology/marble | B158: Marble | C158: Metamorphic rock consisting of greater than 75 percent fine- to coarse-grained recrystallized calcite and/or dolomite, usually with a granoblastic, saccharoidal texture. | D158: IUGS SCMR 2007 (http://www.bgs.ac.uk/SCMR/), SLTTm1.0 2004
A159: http://resource.geosciml.org/classifier/cgi/lithology/material_formed_in_surficial_environment | B159: Material formed in surficial environment | C159: Material that is the product of weathering processes operating on pre-existing rocks or deposits, analogous to hydrothermal or metasomatic rocks, but formed at ambient Earth surface temperature and pressure. | D159: This vocabulary
A160: http://resource.geosciml.org/classifier/cgi/lithology/metamorphic_rock | B160: Metamorphic rock | C160: Rock formed by solid-state mineralogical, chemical and/or structural changes to a pre-existing rock, in response to marked changes in temperature, pressure, shearing stress and chemical environment. | D160: Jackson 1997
A161: http://resource.geosciml.org/classifier/cgi/lithology/metasomatic_rock | B161: Metasomatic rock | C161: Rock that has fabric and composition indicating open-system mineralogical and chemical changes in response to interaction with a fluid phase, typically water rich. | D161: This vocabulary
A162: http://resource.geosciml.org/classifier/cgi/lithology/mica_schist | B162: Mica schist | C162: A schist that consists of more than 50 percent mica minerals, typically muscovite or biotite. Special type included to distinguish this common variety of schist. | D162: This vocabulary
A163: http://resource.geosciml.org/classifier/cgi/lithology/migmatite | B163: Migmatite | C163: Silicate metamorphic rock that is pervasively heterogeneous on a decimeter to meter scale that typically consists of darker and lighter parts, the darker parts usually exhibit features of metamorphic rocks whereas the lighter parts are of igneous-looking appearance. | D163: Fette and Desmons (2007) (http://www.bgs.ac.uk/SCMR/)
A164: http://resource.geosciml.org/classifier/cgi/lithology/monzodiorite | B164: Monzodiorite | C164: Phaneritic crystalline igneous rock consisting of sodic plagioclase (An0 to An50), alkali feldsparhornblende and biotite, with or without pyroxene, and 0 to 5 percent quartz. Includes rocks defined modally in QAPF field 9. | D164: LeMaitre et al. 2002
A165: http://resource.geosciml.org/classifier/cgi/lithology/monzodioritic_rock | B165: Monzodioritic rock | C165: Phaneritic crystalline igneous rock consisting of sodic plagioclase (An0 to An50), alkali feldsparhornblende and biotite, with or without pyroxene, and 0 to 10 percent feldspathoid or 0 to 20 percent quartz in the QAPF fraction. Plagioclase to total feldspar ratio in the QAPF fraction is between 0.65 and 0.9. Includes rocks defined modally in QAPF field 9, 9' and 9* as monzodiorite, foid-beaing monzodiorite, and quartz monzodiorite. | D165: This vocabulary, LeMaitre et al. 2002
A166: http://resource.geosciml.org/classifier/cgi/lithology/monzogabbro | B166: Monzogabbro | C166: Monzogabbroic rock that contains between 0 an 5 percent quartz and no feldspathoid mineral in the QAPF fraction. Includes rocks defined modally in QAPF field 9 . | D166: LeMaitre et al. 2002, This vocabulary
A167: http://resource.geosciml.org/classifier/cgi/lithology/monzogabbroic_rock | B167: Monzogabbroic rock | C167: Gabbroid with a plagioclase to total feldspar ratio between 0.65 and 0.9. QAPF field 9, 9 prime and 9 asterisk | D167: LeMaitre et al. 2002, This vocabulary
A168: http://resource.geosciml.org/classifier/cgi/lithology/monzogranite | B168: Monzogranite | C168: Granite that has a plagiolcase to total feldspar ratio between 0.35 and 0.65. QAPF field 3b. | D168: LeMaitre et al. 2002
A169: http://resource.geosciml.org/classifier/cgi/lithology/monzonite | B169: Monzonite | C169: Monzonitic rock that contains 0-5 percent quartz and no feldspathoid mineral in the QAPF fraction. Includes rocks defined modally in QAPF Field 8. | D169: LeMaitre et al. 2002
A170: http://resource.geosciml.org/classifier/cgi/lithology/monzonitic_rock | B170: Monzonitic rock | C170: Syenitoid with a plagioclase to total feldspar ratio between 0.35 and 0.65. Includes rocks in QAPF fields 8, 8*, and 8'. | D170: LeMaitre et al. 2002
A171: http://resource.geosciml.org/classifier/cgi/lithology/mud | B171: Mud | C171: Clastic sediment consisting of less than 30 percent gravel-size (2 mm) particles and with a mud-size to sand-size particle ratio greater than 1. More than half of the particles are of epiclastic origin. | D171: definition of mud from SLTTs 2004 muddy sediment, particle sizes defined from Krumbein phi scale (W C Krumbein & L L Sloss, Stratigraphy and Sedimentation, 2nd edition, Freeman, San Francisco, 1963, Krumbein and Pettijohn, 1938, Manual of Sedimentary Petrography: New York, Appleton Century Co., Inc.)
A172: http://resource.geosciml.org/classifier/cgi/lithology/mud_size_sediment | B172: Mud size sediment | C172: Sediment consisting of less than 30 percent gravel-size (2 mm) particles and with a mud-size to sand-size particle ratio greater than 1. Clasts may be of any composition or origin. | D172: based on SLTTs 2004, Neuendorf et al. 2005, particle sizes defined from Krumbein phi scale (W C Krumbein & L L Sloss, Stratigraphy and Sedimentation, 2nd edition, Freeman, San Francisco, 1963, Krumbein and Pettijohn, 1938, Manual of Sedimentary Petrography: New York, Appleton Century Co., Inc.)
A173: http://resource.geosciml.org/classifier/cgi/lithology/mylonitic_rock | B173: Mylonitic rock | C173: Metamorphic rock characterised by a foliation resulting from tectonic grain size reduction, in which more than 10 percent of the rock volume has undergone grain size reduction. Includes protomylonite, mylonite, ultramylonite, and blastomylonite. | D173: Marshak & Mitra 1988
A174: http://resource.geosciml.org/classifier/cgi/lithology/natural_unconsolidated_material | B174: Natural unconsolidated material | C174: Unconsolidated material known to have natural, ie. not human-made, origin. | D174: This vocabulary
A175: http://resource.geosciml.org/classifier/cgi/lithology/non_clastic_siliceous_sediment | B175: Non-clastic siliceous sediment | C175: Sediment that consists of at least 50 percent silicate mineral material, deposited directly by chemical or biological processes at the depositional surface, or in particles formed by chemical or biological processes within the basin of deposition. | D175: NGMDB 2008, Hallsworth and Knox 1999
A176: http://resource.geosciml.org/classifier/cgi/lithology/non_clastic_siliceous_sedimentary_material | B176: Non-clastic siliceous sedimentary material | C176: Sedimentary material that consists of at least 50 percent silicate mineral material, deposited directly by chemical or biological processes at the depositional surface, or in particles formed by chemical or biological processes within the basin of deposition. | D176: SLTTs 2004
A177: http://resource.geosciml.org/classifier/cgi/lithology/non_clastic_siliceous_sedimentary_rock | B177: Non-clastic siliceous sedimentary rock | C177: Sedimentary rock that consists of at least 50 percent silicate mineral material, deposited directly by chemical or biological processes at the depositional surface, or in particles formed by chemical or biological processes within the basin of deposition. | D177: SLTTs 2004
A178: http://resource.geosciml.org/classifier/cgi/lithology/ooze | B178: Ooze | C178: Biogenic sediment consisting of less than 1 percent gravel-size (greater than or equal to 2 mm) particles, with a sand to mud ratio less than 1 to 9, and less than 50 percent carbonate minerals. | D178: based on Bates and Jackson 1987 & Hallsworth & Knox 1999
A179: http://resource.geosciml.org/classifier/cgi/lithology/organic_bearing_mudstone | B179: Organic bearing mudstone | C179: Mudstone that contains a significant amount of organic carbon, typically kerogen. Commonly finely laminated, brown or black in color. | D179: Neuendorf et al. 2005, http://en.wikipedia.org/wiki/Oil_shale
A180: http://resource.geosciml.org/classifier/cgi/lithology/organic_rich_sediment | B180: Organic rich sediment | C180: Sediment with color, composition, texture and apparent density indicating greater than 50 percent organic content by weight on a moisture-free basis. | D180: SLTTs 2004
A181: http://resource.geosciml.org/classifier/cgi/lithology/organic_rich_sedimentary_material | B181: Organic rich sedimentary material | C181: Sedimentary material in which 50 percent or more of the primary sedimentary material is organic carbon. | D181: SLTTs 2004
A182: http://resource.geosciml.org/classifier/cgi/lithology/organic_rich_sedimentary_rock | B182: Organic rich sedimentary rock | C182: Sedimentary rock with color, composition, texture and apparent density indicating greater than 50 percent organic content by weight on a moisture-free basis. | D182: SLTTs 2004
A183: http://resource.geosciml.org/classifier/cgi/lithology/orthogneiss | B183: Orthogneiss | C183: A gneiss with mineralogy and texture indicating derivation from a phaneritic igneous rock protolith. Typically consists of abundant feldspar, with quartz, and variable hornblende, biotite, and muscovite, with a relatively homogeneous character. | D183: This vocabulary
A184: http://resource.geosciml.org/classifier/cgi/lithology/packstone | B184: Packstone | C184: Carbonate sedimentary rock with discernible grain supported depositional texture, containing greater than 10 percent grains, and constituent particles are of intrabasinal origin, intergranular spaces are filled by matrix. | D184: Hallsworth & Knox 1999
A185: http://resource.geosciml.org/classifier/cgi/lithology/paragneiss | B185: Paragneiss | C185: A gneiss with mineralogy and texture indicating derivation from a sedimentary rock protolith. Typically consists of abundant quartz, mica, or calcsilicate minerals, aluminosilicate minerals or garnet commonly present. Composition of rock tends to be more variable on a decimetric scale that in orthogneiss. | D185: This vocabulary
A186: http://resource.geosciml.org/classifier/cgi/lithology/peat | B186: Peat | C186: Unconsolidated organic-rich sediment composed of at least 50 percent semi-carbonised plant remains, individual remains commonly seen with unaided eye, yellowish brown to brownish black, generally fibrous texture, can be plastic or friable. In its natural state it can be readily cut and has a very high moisture content, generally greater than 90 percent. Liptinite to Inertinite ratio is less than one (Economic Commission for Europe, Committee on Sustainable Energy- United Nations (ECE-UN), 1998, International Classification of in-Seam Coals: Energy 19, 41 pp.) | D186: Hallsworth & Knox 1999
A187: http://resource.geosciml.org/classifier/cgi/lithology/pebble_gravel_size_sediment | B187: Pebble gravel size sediment | C187: Sediment containing greater than 30 percent pebble-size particles (2.0 -64 mm in diameter)^^xsd:string | D187: Wentworth size scale^^xsd:string
A188: http://resource.geosciml.org/classifier/cgi/lithology/pegmatite | B188: Pegmatite | C188: Exceptionally coarse grained crystalline rock with interlocking crystals, most grains are 1cm or more diameter, composition is generally that of granite, but the term may refer to the coarse grained facies of any type of igneous rock,usually found as irregular dikes, lenses, or veins associated with plutons or batholiths. | D188: Neuendorf et al. 2005
A189: http://resource.geosciml.org/classifier/cgi/lithology/peridotite | B189: Peridotite | C189: Ultramafic rock consisting of more than 40 percent (by volume) olivine with pyroxene and/or amphibole and little or no feldspar. Commonly altered to serpentinite. Includes rocks defined modally in the ultramafic rock classification as duniteharzburgite, lherzolite, wehrlite, olivinite, pyroxene peridotite, pyroxene hornblende peridotite or hornblende peridotite. | D189: LeMaitre et al. 2002
A190: http://resource.geosciml.org/classifier/cgi/lithology/phaneritic_igneous_rock | B190: Phaneritic igneous rock | C190: Igneous rock in which the framework of the rock consists of individual crystals that can be discerned with the unaided eye. Bounding grain size is on the order of 32 to 100 microns. Igneous rocks with 'exotic' composition are excluded from this concept. | D190: Neuendorf et al. 2005
A191: http://resource.geosciml.org/classifier/cgi/lithology/phonolilte | B191: Phonolite | C191: Phonolitoid in which the plagioclase to total feldspar ratio is less than 0.1. Rock consists of alkali feldspar, feldspathoid minerals, and mafic minerals. | D191: LeMaitre et al. 2002
A192: http://resource.geosciml.org/classifier/cgi/lithology/phonolitic_basanite | B192: Phonolitic basanite | C192: Tephritoid that has a plagioclase to total feldspar ratio between 0.5 and 0.9, and contains more than 10 percent normative (CIPW) olivine. | D192: LeMaitre et al. 2002
A193: http://resource.geosciml.org/classifier/cgi/lithology/phonolitic_foidite | B193: Phonolitic foidite | C193: Foiditoid that contains less than 90 percent feldspathoid minerals in the QAPF fraction, and has a plagioclase to total feldspar ratio that is less than 0.5 | D193: LeMaitre et al. 2002
A194: http://resource.geosciml.org/classifier/cgi/lithology/phonolitic_tephrite | B194: Phonolitic tephrite | C194: Tephritoid that has a plagioclase to total feldspar ratio between 0.5 and 0.9, and contains less than 10 percent normative (CIPW) olivine. | D194: LeMaitre et al. 2002
A195: http://resource.geosciml.org/classifier/cgi/lithology/phonolitoid | B195: Phonolitoid | C195: Fine grained igneous rock than contains less than 90 percent mafic minerals, between 10 and 60 percent feldspathoid mineral in the QAPF fraction and has a plagioclase to total feldspar ratio less than 0.5. Includes rocks defined modally in QAPF fields 11 and 12, and TAS field Ph. | D195: LeMaitre et al. 2002
A196: http://resource.geosciml.org/classifier/cgi/lithology/phosphate_rich_sediment | B196: Phosphate rich sediment | C196: Sediment in which at least 50 percent of the primary and/or recrystallized constituents are phosphate minerals. | D196: SLTTs 2004
A197: http://resource.geosciml.org/classifier/cgi/lithology/phosphate_rich_sedimentary_material | B197: Phosphate rich sedimentary material | C197: Sedimentary material in which at least 50 percent of the primary and/or recrystallized constituents are phosphate minerals. | D197: SLTTs 2004
A198: http://resource.geosciml.org/classifier/cgi/lithology/phosphorite | B198: Phosphorite | C198: Sedimentary rock in which at least 50 percent of the primary or recrystallized constituents are phosphate minerals. Most commonly occurs as a bedded primary or reworked secondary marine rock, composed of microcrystalline carbonate fluorapatite in the form of lamina, pellets, oolites and nodules, and skeletal, shell and bone fragments. | D198: Hallsworth&Knox 1999, Jackson 1997
A199: http://resource.geosciml.org/classifier/cgi/lithology/phyllite | B199: Phyllite | C199: Rock with a well developed, continuous schistosity, an average grain size between 0.1 and 0.5 millimeters, and a silvery sheen on cleavage surfaces. Individual phyllosilicate grains are barely visible with the unaided eye. | D199: IUGS SCMR 2007 (http://www.bgs.ac.uk/SCMR/)
A200: http://resource.geosciml.org/classifier/cgi/lithology/phyllonite | B200: Phyllonite | C200: Mylonitic rock composed largely of fine-grained mica that imparts a sheen to foliation surfaces, may have flaser lamination, isoclinal folding, and deformed veins, which indicate significant shearing. Macroscopically resembles phyllite, but formed by mechanical degradation of initially coarser rock. | D200: NADM metamorphic rock vocabulary SLTTm1.0, Marshak & Mitra 1988
... 67 more rows
